Cogmind - Beta 12 X1 @@@ ROGUE MODE // 2022.07.09 @ 14:33:24 Player: Terminus Result: Destroyed by Architect with Modified Sigix Sheargun Performance ------------- Evolutions (9) 4500 Regions Visited (33) 6600 Robots Destroyed (1019) 5095 Value Destroyed (58483) 58483 Prototype IDs (280) 5600 Alien Tech Used (8) 1600 Bonus (58557) 58557 TOTAL SCORE: 140435 Bonus ------- Triggered High Security 1000 High Alert Combat Kills 27589 Follower Combat Kills 2842 Entered Garrisons 1400 Used RIF Installer 3500 Network Hubs Disabled 400 Built Enhanced Grunts 300 Met R17 at Cetus 500 Found Hidden Lab 3000 Destroyed MAIN.C Guards 500 Met MAIN.C 5000 Destroyed MAIN.C Shell 5000 Destroyed MAIN.C 10000 Met Architect 300 Destroyed A8 300 Destroyed A6 400 Destroyed A2 1000 Friendly Fire -4474 Cogmind --------- Core Integrity 0/1600 Matter 29/300 Energy 5/630 System Corruption 1% Temperature Cool (14) Movement Immobile (Siege) Ox2 Location -1/Access_0 Parts ------- > --- POWER (4) -------- Zero-point Reactor Zero-point Reactor > --- PROPULSION (6) --- Enhanced Armored Heavy Treads > --- UTILITY (12) ----- Desublimator Huge Storage Unit Experimental Targeting Computer Experimental Targeting Computer Experimental Target Analyzer Experimental Core Analyzer Experimental Weapon Cycler AEGIS Remote Shield > --- WEAPON (4) ------- Neutron Cannon Hypervelocity Linear Accelerator Hypervelocity Linear Accelerator > --- INVENTORY (25) --- Advanced Cooling System Experimental Energy Well (0) Experimental Energy Well (63) Experimental Matter Compressor (500) Experimental Matter Compressor (253) Advanced Weapon Cycler Experimental Transmission Jammer Experimental System Purifier High-powered Tractor Beam Hypervelocity Railgun Hypervelocity Railgun Hypervelocity Railgun Hypervelocity Railgun Hypervelocity Multirail Perforator Gamma Bomb Array Plasma Cutter Peak State ------------ > --- POWER ------------ Vortex Chain Reactor Vortex Chain Reactor > --- PROPULSION ------- Advanced Heavy Siege Treads High-density Centrium Heavy Treads High-density Centrium Heavy Treads > --- UTILITY ---------- Desublimator Advanced Cooling System Huge Storage Unit Experimental Terrain Scanner Experimental Targeting Computer Experimental Targeting Computer Experimental Target Analyzer Experimental Core Analyzer Advanced Weapon Cycler Heavy Regenerative Plating AEGIS Remote Shield > --- WEAPON ----------- Multirail Multirail Hypervelocity Multirail Hypervelocity Multirail > --- INVENTORY -------- Zero-point Reactor Zero-point Reactor Enhanced Armored Heavy Treads Advanced Cooling System Experimental Energy Well Experimental Energy Well Experimental Matter Compressor Experimental Matter Compressor Experimental Targeting Computer Experimental Transmission Jammer Experimental Phase Shifter AEGIS Remote Shield Experimental System Purifier High-powered Tractor Beam Enhanced Nova Cannon Hypervelocity Railgun Hypervelocity Railgun Hypervelocity Railgun Hypervelocity Railgun Multirail Perforator Gamma Bomb Array Plasma Cutter [Rating: 266] Favorites ----------- Power Vortex Chain Reactor Engine Heavy Ion Engine Power Core Neutrino Core Reactor Vortex Chain Reactor Propulsion High-density Centrium Heavy Treads Treads High-density Centrium Heavy Treads Utility Huge Storage Unit Device AEGIS Remote Shield Storage Huge Storage Unit Processor Experimental Targeting Computer Hackware Advanced Hacking Suite Protection Centrium Heavy Armor Plating Weapon Multirail Energy Gun Beam Rifle Energy Cannon Ion Cannon Ballistic Gun Multirail Ballistic Cannon Light Cannon Launcher Gamma Bomb Array Special Weapon Plasma Cutter Build | -11 -10 -10 -9 -9 -8 -8 -8 -8 -7 -7 -7 -7 -7 -7 -6 -6 -5 -5 -5 -5 -5 -4 -4 -4 -3 -3 -3 -2 -2 -2 -1 -1 -1 ------- Run | Scr Mat Min Mat Min Mat Gar Mat Gar Fac Gar Fac Gar Fac Gar Fac Gar Fac Ext Cet Arc Hub Fac Arm Lab Res Qua Sec Res Tes Gar Acc Com Ac0 Slots Evolved 18 | . . . 2 . 2 . . . 2 . . . . . 2 . 2 . . . . 2 . . 2 . . 2 . . 2 . . Power 3 | . . . . . . . . . . . . . . . . . . . . . . 1 . . . . . 1 . . 1 . . Propulsion 3 | . . . 1 . . . . . . . . . . . 1 . . . . . . . . . 1 . . . . . . . . Utility 10 | . . . 1 . 1 . . . 2 . . . . . . . 2 . . . . 1 . . 1 . . 1 . . 1 . . Weapon 2 | . . . . . 1 . . . . . . . . . 1 . . . . . . . . . . . . . . . . . . Parts Attached 585 | 7 5 2 25 . 6 13 25 9 6 11 15 13 1 30 3 12 11 13 16 10 4 27 66 8 17 41 35 4 27 14 5 74 30 Power 36 | 1 . . 2 . . 2 1 1 . 1 1 3 . 1 . . 1 1 1 . 1 2 8 . 2 1 . 1 1 . 1 . 3 Engine 8 | 1 . . 2 . . 1 1 . . 1 . 1 . 1 . . . . . . . . . . . . . . . . . . . Core 7 | . . . . . . . . 1 . . . 2 . . . . 1 1 1 . . . 1 . . . . . . . . . . Reactor 21 | . . . . . . 1 . . . . 1 . . . . . . . . . 1 2 7 . 2 1 . 1 1 . 1 . 3 Propulsion 52 | 2 . . 7 . . 2 9 4 . 2 . 2 . 3 1 . . 1 2 . . 2 6 . 1 4 . . 3 . . . 1 Treads 52 | 2 . . 7 . . 2 9 4 . 2 . 2 . 3 1 . . 1 2 . . 2 6 . 1 4 . . 3 . . . 1 Leg . | . . . . . . . . . . . . . . . . . . . . . . . . . . . . . . . . . . Wheel . | . . . . . . . . . . . . . . . . . . . . . . . . . . . . . . . . . . Hover . | . . . . . . . . . . . . . . . . . . . . . . . . . . . . . . . . . . Flight . | . . . . . . . . . . . . . . . . . . . . . . . . . . . . . . . . . . Utility 264 | 1 3 . 7 . 2 4 7 1 3 4 12 4 1 10 1 7 8 9 7 5 3 17 32 6 8 20 17 1 14 8 2 34 6 Device 145 | . 2 . 1 . 1 1 3 . 1 1 9 1 1 1 1 2 6 3 3 3 2 11 18 1 6 10 12 1 10 4 2 23 5 Storage 11 | 1 1 . 1 . . . . . . . . . . . . 1 . . . . . . . . 1 1 . . 2 . . 3 . Processor 19 | . . . . . . 1 . . 1 . . . . . . . 1 1 . . . . 2 . . 3 2 . 1 3 . 3 1 Hackware 17 | . . . . . . . . . 1 1 . 2 . 6 . 1 . 1 1 1 . . . 1 . 1 . . 1 . . . . Protection 72 | . . . 5 . 1 2 4 1 . 2 3 1 . 3 . 3 1 4 3 1 1 6 12 4 1 5 3 . . 1 . 5 . Artifact . | . . . . . . . . . . . . . . . . . . . . . . . . . . . . . . . . . . Weapon 233 | 3 2 2 9 . 4 5 8 3 3 4 2 4 . 16 1 5 2 2 6 5 . 6 20 2 6 16 18 2 9 6 2 40 20 Energy Gun 4 | 1 1 . . . . . . . . . . . . . . . . . . . . . . . . . . . 1 1 . . . Energy Cannon 24 | . . 1 5 . . . . . . . . . . . . . . . . . . . . 1 . 4 3 . 1 1 1 4 3 Ballistic Gun 163 | 2 . . 1 . 4 4 6 2 3 2 2 3 . 9 1 4 2 2 4 4 . 6 17 1 5 11 14 2 6 4 1 28 13 Ballistic Cannon 6 | . 1 1 . . . . . . . . . . . . . . . . . . . . . . . . . . . . . . 4 Launcher 17 | . . . 3 . . . 2 . . . . . . 1 . . . . . . . . 3 . 1 . 1 . . . . 6 . Special Weapon 19 | . . . . . . 1 . 1 . 2 . 1 . 6 . 1 . . 2 1 . . . . . 1 . . 1 . . 2 . Impact Weapon . | . . . . . . . . . . . . . . . . . . . . . . . . . . . . . . . . . . Slashing Weapon . | . . . . . . . . . . . . . . . . . . . . . . . . . . . . . . . . . . Piercing Weapon . | . . . . . . . . . . . . . . . . . . . . . . . . . . . . . . . . . . Special Melee Weapon . | . . . . . . . . . . . . . . . . . . . . . . . . . . . . . . . . . . Unidentified Prototypes 49 | . . . 1 . . . . . . . . . . . . . . . 2 1 . 3 2 5 1 8 5 . 10 4 . 5 2 Corrupted Parts 4 | . . . . . . . . . . . . . . . . . . . 1 3 . . . . . . . . . . . . . System Corruption 9 | . . . . . . . . . . . . . . . . . . . 3 6 . . . . . . . . . . . . . Parts Lost 81 | . . . . . . 2 3 2 . 2 4 5 . 7 . 5 . 2 1 . 1 2 13 . 7 1 1 . . 2 . 4 17 Power 14 | . . . . . . . . 1 . . 1 1 . . . . . . 1 . 1 1 5 . 1 . . . . . . . 2 Propulsion 11 | . . . . . . . . 1 . 1 . 2 . 1 . . . . . . . . 2 . . 1 . . . . . . 3 Utility 30 | . . . . . . 1 1 . . 1 1 . . 1 . 2 . 2 . . . . 4 . 3 . 1 . . 2 . 4 7 Weapon 26 | . . . . . . 1 2 . . . 2 2 . 5 . 3 . . . . . 1 2 . 3 . . . . . . . 5 Highest Loss Streak 5 | . . . . . . 1 1 1 . 1 1 2 . 2 . 2 . 2 1 . 1 1 4 . 3 1 1 . . 2 . 2 5 To Critical Strikes 4 | . . . . . . . . . . . . . . . . 1 . . . . . . 1 . . . . . . . . . 2 Average Slot Usage (%) 86 | . 99 100 96 100 90 95 99 99 99 97 92 91 92 89 86 84 82 85 88 87 87 88 88 87 85 84 76 78 78 78 76 75 74 Engine 3 | . 14 14 10 11 9 8 9 4 . 3 5 2 7 7 6 6 . . . . . . . . . . . . . . . . . Reactor 4 | . . . . . . . . . . . 1 . . . . . . . . . . 9 9 10 8 8 4 8 8 8 7 7 7 Treads 15 | . 28 28 30 33 27 27 26 26 23 20 15 14 15 13 13 13 11 11 11 11 11 9 10 10 13 12 13 12 12 12 11 11 10 Device 11 | . 13 14 11 11 9 9 9 9 15 7 11 6 10 1 5 5 5 5 5 8 9 14 12 10 12 12 12 11 11 14 15 16 16 Storage 5 | . 14 14 11 11 9 9 9 9 7 7 7 7 7 7 6 6 5 5 5 5 5 5 5 5 4 4 4 4 4 4 3 3 3 Processor 11 | . . . . . . 3 9 9 15 15 15 15 15 15 13 13 17 13 11 11 11 10 11 15 13 12 9 12 12 12 15 15 16 Hackware 5 | . . . . . . . . . 7 7 7 7 7 14 6 6 5 8 11 11 11 10 10 10 9 10 9 8 8 4 3 1 . Protection 5 | . . . 10 11 9 10 9 9 . 6 3 7 4 4 6 5 5 7 11 6 6 5 5 4 4 3 3 4 4 3 3 3 2 Energy Cannon 1 | . . 11 17 22 9 3 . . . . . . . . . . . . . . . . . 2 . 1 . . . . . . 1 Ballistic Gun 17 | . 2 . 1 . 18 22 26 26 22 21 23 22 23 17 26 25 23 23 21 23 23 20 20 18 16 16 17 16 15 15 14 14 11 Naked Turns . | . . . . . . . . . . . . . . . . . . . . . . . . . . . . . . . . . . Heaviest Build 240 | 14 33 40 107 107 118 127 116 110 104 120 120 120 115 121 122 127 132 129 132 133 134 157 158 154 169 179 184 198 201 209 220 230 240 Greatest Support 260 | 40 40 40 63 63 63 63 67 72 72 97 97 103 103 105 150 150 150 150 155 155 155 155 155 150 230 260 240 240 260 260 260 260 260 Greatest Overweight (x) 2 | 2 . . 1 1 1 2 1 1 1 1 1 1 1 1 . . . . . . . 1 1 1 . 1 . . . . . . . Average Overweight (x) . | . . . . 1 1 1 1 1 1 1 1 1 1 . . . . . . . . . . . . . . . . . . . . Largest Inventory Capacity 25 | 8 15 15 25 25 25 25 25 25 25 25 25 25 25 25 25 25 25 25 25 25 25 25 25 25 25 25 25 25 25 25 25 25 25 Average Capacity 24 | 6 10 15 19 25 25 25 25 25 25 25 25 25 25 25 25 25 25 25 25 25 25 25 25 25 25 25 25 25 25 25 25 25 25 Most Carried 25 | 2 11 15 20 20 25 25 25 25 25 25 25 25 25 25 25 23 23 25 25 25 25 25 25 25 25 25 25 25 25 25 25 25 25 Average Carried 22 | . 7 14 15 20 24 24 24 24 23 24 24 22 24 23 21 21 21 24 24 25 24 23 24 24 22 24 24 23 24 24 21 23 22 Final Capacity 25 | 8 15 15 25 25 25 25 25 25 25 25 25 25 25 25 25 25 25 25 25 25 25 25 25 25 25 25 25 25 25 25 25 25 25 Final Carried 25 | 1 11 15 20 20 25 24 24 25 25 25 23 25 25 25 21 22 23 25 25 25 24 25 25 25 24 25 25 25 25 24 23 24 18 Class Distribution -------------------- 46% | Scavenger-Gunner 11% | Mutant 10% | Scavenger-Tank 8% | Scavenger-Skirmisher 7% | Gunner 4% | Bothacker-Gunner 3% | Scavenger-Mutant 3% | Bothacker-Mutant Dominant Class ---------------- Mutant | -10/Materials Mutant | -10/Mines Mutant | -9/Materials Mutant | -9/Mines Scavenger-Tank | -8/Materials Scavenger-Tank | -8/Garrison Gunner | -8/Materials Gunner | -8/Garrison Skirmisher | -7/Factory Gunner | -7/Garrison Gunner | -7/Factory Bothacker-Gunner | -7/Garrison Bothacker-Gunner | -7/Factory Bothacker-Mutant | -7/Garrison Scavenger-Skirmisher | -6/Factory Scavenger-Gunner | -6/Garrison Scavenger-Gunner | -5/Factory Scavenger-Gunner | -5/Extension Scavenger-Gunner | -5/Cetus Scavenger-Gunner | -5/Archives Scavenger-Skirmisher | -5/Hub_04(d) Scavenger-Skirmisher | -4/Factory Scavenger-Skirmisher | -4/Armory Hacker-Mutant | -4/Lab Scavenger-Gunner | -3/Research Scavenger-Gunner | -3/Quarantine Scavenger-Tank | -3/Section 7 Scavenger-Gunner | -2/Research Scavenger-Gunner | -2/Testing Scavenger-Gunner | -2/Garrison Scavenger-Gunner | -1/Access Scavenger-Gunner | -1/Command Scavenger-Gunner | -1/Access_0 Resources | -11 -10 -10 -9 -9 -8 -8 -8 -8 -7 -7 -7 -7 -7 -7 -6 -6 -5 -5 -5 -5 -5 -4 -4 -4 -3 -3 -3 -2 -2 -2 -1 -1 -1 ----------- Run | Scr Mat Min Mat Min Mat Gar Mat Gar Fac Gar Fac Gar Fac Gar Fac Gar Fac Ext Cet Arc Hub Fac Arm Lab Res Qua Sec Res Tes Gar Acc Com Ac0 Matter Collected 39757 | 272 147 57 487 7 223 855 1390 496 . 661 884 1034 45 1150 . 930 269 894 775 379 429 1617 3262 50 2094 2093 4560 104 1561 1649 1661 7725 1997 Remotely 5452 | . . . . . . 138 291 . . 188 332 . . . . 247 . . . . 95 849 1502 . 1210 . . . . . . 600 . Salvage Created 66868 | 83 224 187 1507 38 590 1228 2992 698 . 1258 1388 1080 104 1002 . 1264 618 1377 879 381 1307 2633 4027 . 4294 2637 6009 136 2728 2876 4084 17559 1680 Parts 2661 | 4 20 13 99 3 34 72 163 47 . 65 62 47 6 62 . 63 30 57 46 26 42 120 184 . 155 121 279 5 179 112 151 290 104 Haulers Intercepted 34 | . . . 5 . 3 . 5 . . . 1 . . . . . . . . . 4 2 . . 5 2 3 . 1 . 3 . . Recyclers Shooed 12 | . . . 2 . 1 . 1 . . . 1 . . . . . 2 . . . . 1 . . 4 . . . . . . . . Parts Field Recycled . | . . . . . . . . . . . . . . . . . . . . . . . . . . . . . . . . . . Retrieved Matter . | . . . . . . . . . . . . . . . . . . . . . . . . . . . . . . . . . . Parts Self-Destructed . | . . . . . . . . . . . . . . . . . . . . . . . . . . . . . . . . . . Prevented . | . . . . . . . . . . . . . . . . . . . . . . . . . . . . . . . . . . Kills | -11 -10 -10 -9 -9 -8 -8 -8 -8 -7 -7 -7 -7 -7 -7 -6 -6 -5 -5 -5 -5 -5 -4 -4 -4 -3 -3 -3 -2 -2 -2 -1 -1 -1 ------- Run | Scr Mat Min Mat Min Mat Gar Mat Gar Fac Gar Fac Gar Fac Gar Fac Gar Fac Ext Cet Arc Hub Fac Arm Lab Res Qua Sec Res Tes Gar Acc Com Ac0 Combat Hostiles Destroyed 841 | . 9 4 31 1 6 21 47 14 . 20 26 24 1 19 . 24 8 13 10 1 12 28 70 . 31 27 81 1 27 36 42 188 19 Melee 3 | . . . . . . 1 . . . . . . 1 . . . . . . . . . . . . . 1 . . . . . . Guns 728 | . 4 . 1 . 4 15 41 14 . 20 26 24 . 16 . 24 8 13 10 1 11 28 56 . 25 17 62 1 27 36 42 187 15 Cannons 50 | . 5 4 19 1 2 5 . . . . . . . . . . . . . . . . . . 3 7 . . . . . 1 3 AOE 55 | . . . 11 . . . 6 . . . . . . 3 . . . . . . . . 14 . 3 . 17 . . . . . 1 Classes Destroyed 28 | 1 3 2 4 . 1 . 3 2 . . . . 2 1 . . . . . . 1 . 2 . . 3 2 . . . . 1 . Worker 43 | . . 1 2 . 1 . 6 . . . 4 . . . . . 1 . . . 4 5 . . 10 1 . . 4 . . 4 . Builder 21 | . . 1 1 . . . 4 . . . 1 . 1 . . . . 1 . . . 3 . . 2 1 3 . 2 . 1 . . Tunneler 3 | . . . . . . . . . . . . . 1 . . . . . . . 1 . . . 1 . . . . . . . . Hauler 34 | . . . 5 . 3 . 5 . . . 1 . . . . . . . . . 4 2 . . 5 2 3 . 1 . 3 . . Recycler 23 | 1 . . 1 . 1 . 4 . . . 2 . . . . . . 4 . . . 1 . . 7 . 1 . . . . 1 . Carrier 20 | . . . . . . . . . . . . . . . . . . . . . . . 1 . . 1 . . 1 . 1 16 . Mechanic 15 | . . . 2 . . . 1 . . . . . . . . . . . . . . . 1 . . . 2 . 1 . . 8 . Operator 16 | . . . . . . . . . . . . . 1 . . . 1 . . 8 . . 1 . . 1 . . 3 . 1 . . Watcher 58 | . 1 . 5 . 1 . 4 . . 2 1 . . 1 . . 1 2 2 . 2 5 3 . 8 3 4 1 3 . 4 5 . Swarmer 108 | . 3 . 8 . . . 3 . . 7 8 6 . 8 . 7 . 4 . . . . 22 . 8 5 . . . 5 . 14 . Cutter 5 | . . . . . . . . 3 . . . 2 . . . . . . . . . . . . . . . . . . . . . Saboteur 12 | . . . . . . . . . . . . . . . . . . . . . . . 2 . . 1 2 . . . . 7 . Grunt 343 | . 6 4 15 1 4 16 23 7 . 9 14 12 . 3 . 15 6 4 2 . 8 13 20 . 12 6 32 . 7 13 21 70 . Brawler 23 | . . . . . . . 2 . . . . . . . . . . . . . 1 . 2 . . 1 1 . . 4 2 10 . Duelist 30 | . . . 1 . . . 2 . . . . . 1 . . . . . . . . . 7 . . . 5 . . 1 2 11 . Protector 25 | . . . . . . . 1 . . . 1 . . . . . . . . . . . 4 . . . 2 . . . 2 15 . Researcher 3 | . . . . . . . . . . . . . . . . . . . . . . . . . . 2 1 . . . . . . Sentry 75 | . . . 7 . . 5 11 1 . 4 1 4 . . . . 2 5 . 1 1 5 1 . 1 . 8 1 7 2 3 5 . Demolisher 2 | . . . . . . . . . . . . . . . . . . . . . 1 . 1 . . . . . . . . . . Specialist 11 | . . . . . 2 . 2 . . . . . . 1 . . . . . . . . 3 . . . 2 . . . . 1 . Hunter 48 | . . . . . . . 3 . . . . . . 2 . 2 . . 1 . 1 2 2 . 8 3 6 . . 6 4 8 . Programmer 102 | . . . . . . . . 3 . . 2 . . 5 . . . . 1 . . 8 6 . 2 9 16 . 13 4 8 25 . Heavy 3 | . . . . . . . . . . . . . . . . . . . . . . . . . . . 1 . . . . 2 . Behemoth 4 | . . . . . . . . . . . . . . 1 . . . . . . . . . . . . 1 . . 1 . 1 . Cetus Guard 6 | . . . . . . . . . . . . . . . . . . . 6 . . . . . . . . . . . . . . M Guard 2 | . . . . . . . . . . . . . . . . . . . . . . . . . . . . . . . . 2 . Enhanced Grunt 8 | . . . . . . . . . . . . . . . . . . . . . . . . . . . . . . . . . 8 Enhanced Hunter 8 | . . . . . . . . . . . . . . . . . . . . . . . . . . . . . . . . . 8 Combat Programmer 2 | . . . . . . . . . . . . . . . . . . . . . . . . . . . . . . . . 2 . Investigator 1 | . . . . . . . . . . . . . . . . . . . . . . . . . . . . . . . . 1 . Striker 11 | . . . . . . . . . . . . . . . . . . . . . . . . . . . . . . . . 11 . Executioner 5 | . . . . . . . . . . . . . . . . . . . . . . . . . . . 3 . . . . 2 . Alpha 7 3 | . . . . . . . . . . . . . . . . . . . . . . . . . . 1 2 . . . . . . Fortress 1 | . . . . . . . . . . . . . . . . . . . . . . . . . . 1 . . . . . . . Thug 1 | . . . . . . . . . . . . . . 1 . . . . . . . . . . . . . . . . . . . Best Kill Streak 36 | 1 6 2 10 1 2 4 18 3 . 10 7 4 2 3 . 7 3 5 5 3 11 11 11 . 36 8 18 1 8 11 10 35 3 Combat Bots Only 31 | . 5 2 9 1 2 4 16 3 . 10 4 4 1 3 . 7 3 5 4 1 5 10 10 . 16 5 17 1 7 11 9 31 3 Max Kills in Single Turn 6 | 1 2 1 5 1 2 1 3 2 . 2 2 2 2 2 . 2 2 2 1 2 5 2 3 . 2 2 4 1 3 2 4 6 2 Gunslinging 3 | . . . . . . . 1 . . 1 1 1 . 1 . . . 1 . . 1 1 2 . 1 1 1 . . 1 2 3 . Exploded 4 | . . . 4 . . . 3 . . . . . . 2 . . . . . . . . 3 . 2 . 4 . . . . . 1 Melee 1 | . . . . . . 1 . . . . . . 1 . . . . . . . . . . . . . 1 . . . . . . Uniques/NPCs Destroyed 7 | . . . . . . . . . . . . . . . . . . . 2 . . . . . . . . . . . . 2 3 A7 (-5/Cetus) Revision 17 (-5/Cetus) MAIN.C Shell (-1/Command) MAIN.C (-1/Command) A8 (-1/Access_0) A6 (-1/Access_0) A2 (-1/Access_0) Combat | -11 -10 -10 -9 -9 -8 -8 -8 -8 -7 -7 -7 -7 -7 -7 -6 -6 -5 -5 -5 -5 -5 -4 -4 -4 -3 -3 -3 -2 -2 -2 -1 -1 -1 -------- Run | Scr Mat Min Mat Min Mat Gar Mat Gar Fac Gar Fac Gar Fac Gar Fac Gar Fac Ext Cet Arc Hub Fac Arm Lab Res Qua Sec Res Tes Gar Acc Com Ac0 Damage Taken 46178 | . 265 109 823 . 222 888 1635 605 . 812 1187 1349 66 1653 . 1437 204 699 1118 147 646 2805 6636 . 1620 1187 5126 29 407 764 709 4884 8146 Core 3038 | . 62 13 86 . . 68 177 45 . 105 140 83 33 121 . 155 . 55 65 . 20 84 287 . 47 12 200 . 15 13 29 217 906 Absorbed by Shields 21229 | . . . . . . 32 . . . 256 . 96 . . . 249 . 75 92 . . . . . 1521 1144 4909 29 393 783 678 4746 6226 Reduced by Siege Mode 3232 | . . . . . . . . . . . 29 . . 32 . 72 5 29 79 . 25 323 602 . 210 152 398 4 23 68 59 589 533 Redirected to Shielding 148 | . . . . . . . . . . . . . . . . . . . . . . . . . . . . . . . . 148 . Regen/Repaired (Parts) 13963 | . . . 483 . 37 . 216 . 322 . . . . . . . . . 138 50 47 1634 1755 153 206 138 2885 . 132 2462 . 2780 525 Core Remaining (%) 65 | 100 . 70 . 78 . . . 47 . . . . . 31 . 81 . . . . 86 . . 67 . . 21 . . 69 . . . Volleys Fired 2272 | 4 25 8 84 3 26 95 100 61 3 74 60 85 11 118 4 53 13 44 59 15 34 77 139 9 106 116 182 3 69 59 65 309 159 Largest 4 | 2 2 2 2 2 3 3 3 3 1 3 3 3 3 3 4 4 4 4 4 4 4 4 4 4 4 4 4 4 4 4 4 4 4 Hottest 300 | 70 91 108 128 128 111 111 88 84 35 101 101 93 90 105 119 126 126 132 134 136 136 140 155 139 153 153 163 163 178 190 190 248 300 Shots Fired 6755 | 8 50 14 161 8 78 206 278 128 3 144 179 225 33 197 13 172 52 176 163 62 121 297 528 12 351 296 631 12 207 223 248 907 572 Gun 5924 | 8 25 . 17 . 52 153 274 104 3 108 179 215 33 132 13 167 52 176 138 62 121 297 521 7 327 249 613 12 201 220 244 794 407 Cannon 509 | . 25 14 137 8 26 23 . . . . . . . . . . . . . . . . . 5 21 44 12 . 4 3 4 18 165 Launcher 44 | . . . 7 . . . 4 . . . . . . 2 . . . . . . . . 7 . 3 . 6 . . . . 15 . Special 278 | . . . . . . 30 . 24 . 36 . 10 . 63 . 5 . . 25 . . . . . . 3 . . 2 . . 80 . Kinetic 6042 | 4 25 8 36 . 52 153 274 104 3 108 179 215 33 132 13 167 52 176 138 62 121 297 521 7 327 249 613 12 201 220 244 794 502 Thermal 631 | 4 25 6 118 8 26 53 . 24 . 36 . . . 44 . . . . 24 . . . . 5 21 44 12 . 6 3 4 98 70 Explosive 29 | . . . 7 . . . 4 . . . . . . 2 . . . . . . . . 7 . 3 . 6 . . . . . . Electromagnetic 15 | . . . . . . . . . . . . . . . . . . . . . . . . . . . . . . . . 15 . Robot Hit Streak 93 | 2 9 4 21 2 6 18 14 24 . 30 42 22 10 34 . 22 25 31 38 18 15 35 39 . 18 50 70 5 35 54 49 93 70 Robot Miss Streak 8 | 2 3 3 5 3 4 7 3 4 . 3 3 4 . 4 . 3 2 2 4 2 4 3 2 . 5 2 5 . 3 4 8 7 5 Penetration Max 3 | . . . . . 1 1 1 1 . 1 2 2 1 1 . 1 1 1 1 1 1 1 1 . 2 1 2 . 2 1 3 3 1 Secondary Targets 137 | . . . . . . 2 9 2 . 6 6 6 . 2 . 10 1 2 2 . 5 5 20 . 10 6 10 . 1 3 6 21 2 Max Gunslinging Chain 3 | . . . . . . 1 1 1 . 1 1 1 . 1 . 1 1 1 1 . 2 1 2 . 1 2 1 . 1 1 2 3 1 Shots Hit Robots 4685 | 4 28 7 109 2 42 121 174 79 . 96 109 108 8 141 . 122 32 100 123 45 79 220 350 . 225 152 507 4 100 185 129 774 510 Core Hits 3206 | 2 11 6 50 1 20 51 103 28 . 48 53 45 4 50 . 51 20 49 54 28 47 102 178 . 142 91 325 8 105 125 159 895 355 Critical Kills 409 | . . . . . . . 7 . . 4 2 3 . 3 . 6 6 4 5 1 1 11 23 . 32 9 8 . 25 22 46 175 16 Critical Parts Destroyed 628 | . . . 1 . . 5 6 . . . 2 2 1 3 . 6 4 7 10 . 2 17 48 . 64 12 10 . 20 27 54 245 82 Critical Strikes 1338 | . 3 1 1 . . 7 14 1 . 5 4 5 1 8 . 12 10 11 18 1 3 30 73 . 96 23 19 . 46 58 103 521 264 Burn 1 | . 1 . . . . . . . . . . . . . . . . . . . . . . . . . . . . . . . . Meltdown 5 | . . . . . . . . . . . . . . . . . . . . . . . . . . 3 1 . 1 . . . . Destroy 1318 | . . . 1 . . 5 14 . . 4 4 5 1 6 . 12 10 11 17 1 3 30 73 . 96 20 18 . 45 58 103 517 264 Blast 3 | . 2 1 . . . . . . . . . . . . . . . . . . . . . . . . . . . . . . . Sever 11 | . . . . . . 2 . 1 . 1 . . . 2 . . . . 1 . . . . . . . . . . . . 4 . Melee Attacks . | . . . . . . . . . . . . . . . . . . . . . . . . . . . . . . . . . . Impact . | . . . . . . . . . . . . . . . . . . . . . . . . . . . . . . . . . . Slashing . | . . . . . . . . . . . . . . . . . . . . . . . . . . . . . . . . . . Piercing . | . . . . . . . . . . . . . . . . . . . . . . . . . . . . . . . . . . Sneak Attacks . | . . . . . . . . . . . . . . . . . . . . . . . . . . . . . . . . . . Combat Hostiles . | . . . . . . . . . . . . . . . . . . . . . . . . . . . . . . . . . . Follow-up Attacks . | . . . . . . . . . . . . . . . . . . . . . . . . . . . . . . . . . . Damage Inflicted 127911 | 62 455 220 3539 64 875 2476 5188 1565 . 2015 3663 2263 199 2512 . 2004 597 2612 2713 1168 2783 6666 10043 . 6099 4765 18171 234 2861 4474 3718 22731 11176 Guns 105087 | 52 161 . 242 . 501 1750 4112 1309 . 1646 3603 2259 193 1787 . 1984 586 2577 2551 1162 2184 6605 7853 . 4768 3432 14148 234 2777 4474 3718 21146 7273 Cannons 10330 | . 283 186 2149 49 371 396 . . . . . . . . . . . . . . . . . . 742 1333 340 . 42 . . 685 3754 Explosions 9386 | . . . 1088 . . . 1055 . . . . . . 229 . . . . . . 599 . 2138 . 563 . 3565 . . . . . 149 Melee . | . . . . . . . . . . . . . . . . . . . . . . . . . . . . . . . . . . Ramming 757 | 10 11 34 60 15 3 34 21 . . 2 60 4 6 . . 20 11 35 . 6 . 61 52 . 26 . 118 . 19 . . 149 . Kinetic 107532 | 27 283 111 546 . 501 1750 4112 1309 . 1646 3603 2259 193 1787 . 1984 586 2577 2551 1162 2184 6605 7853 . 4768 3432 14148 234 2777 4474 3718 21146 9206 Thermal 10570 | 25 161 75 1845 49 371 692 . 256 . 367 . . . 496 . . . . 162 . . . 185 . 742 1333 340 . 65 . . 1436 1970 Explosive 8453 | . . . 1088 . . . 1055 . . . . . . 229 . . . . . . . . 1953 . 563 . 3565 . . . . . . Electromagnetic 599 | . . . . . . . . . . . . . . . . . . . . . 599 . . . . . . . . . . . . Impact . | . . . . . . . . . . . . . . . . . . . . . . . . . . . . . . . . . . Slashing . | . . . . . . . . . . . . . . . . . . . . . . . . . . . . . . . . . . Piercing . | . . . . . . . . . . . . . . . . . . . . . . . . . . . . . . . . . . Highest Corruption 22 | . . . 1 1 . . . 3 . . . . . 4 . . . 10 6 12 2 7 10 10 . 5 22 . 4 12 . 18 1 Average Corruption 5 | . . . 1 1 . . . 2 . . . . . 3 . . . 5 5 7 2 5 8 10 . 2 12 . 2 10 . 6 1 Corruption Purged 39 | . . . . . . . . . . . . . . . . . . 9 . 12 . . . . . . . . . . . 18 . Corruption Blocked . | . . . . . . . . . . . . . . . . . . . . . . . . . . . . . . . . . . Effects 712 | . . . 18 13 . . . 17 . . . . . 57 . . . 13 20 12 . 39 82 12 . 25 142 . 18 47 . 191 6 Message Errors 166 | . . . 10 3 . . . 4 . . . . . 14 . . . 1 5 1 . 15 17 1 . 4 26 . 6 10 . 47 2 Matter Fused 167 | . . . 1 1 . . . 4 . . . . . 17 . . . 3 2 3 . 8 14 4 . 8 33 . 4 13 . 51 1 Heat Flow Errors 64 | . . . 2 1 . . . 1 . . . . . 3 . . . 2 4 2 . 2 7 3 . . 13 . 1 4 . 19 . Energy Discharges 81 | . . . 2 3 . . . 3 . . . . . 5 . . . 6 2 . . 3 10 2 . 2 16 . 1 7 . 19 . Parts Rejected 6 | . . . . . . . . . . . . . . . . . . . . . . . 3 . . . 1 . . . . 1 1 Data Loss (minor) 80 | . . . 1 3 . . . 2 . . . . . 8 . . . . 2 2 . 4 12 . . 5 14 . 2 7 . 18 . Data Loss (major) 38 | . . . . . . . . 2 . . . . . 6 . . . 1 1 . . 2 1 1 . 2 6 . 1 4 . 11 . Misfires 38 | . . . 1 2 . . . . . . . . . 2 . . . . 3 2 . . 8 . . 1 5 . 3 2 . 8 1 Alerts 18 | . . . . . . . . . . . . . . . . . . . . 1 . 1 3 1 . 1 7 . . . . 4 . Misdirections 2 | . . . . . . . . . . . . . . . . . . . . . . . . . . . 2 . . . . . . Weapon Failures 52 | . . . 1 . . . . 1 . . . . . 2 . . . . 1 1 . 4 7 . . 2 19 . . . . 13 1 Overload Shots . | . . . . . . . . . . . . . . . . . . . . . . . . . . . . . . . . . . Overflow Damage 780 | . 25 . 151 . 1 15 7 . . . . . . 14 . . . 25 3 . 15 . 91 . 171 66 152 . . . . 44 . Projectiles 332 | . 25 . 86 . 1 15 . . . . . . . . . . . . 3 . . . . . 136 66 . . . . . . . Explosions 340 | . . . 65 . . . 7 . . . . . . 14 . . . . . . 15 . 75 . 35 . 129 . . . . . . Melee 108 | . . . . . . . . . . . . . . . . . . 25 . . . . 16 . . . 23 . . . . 44 . Knockbacks 14 | . 6 . 4 . . . . . . . . . . . . . . . . . . . . . . . 1 . . . . 1 2 Impact 2 | . . . . . . . . . . . . . . . . . . . . . . . . . . . 1 . . . . 1 . Kinetic 11 | . 5 . 4 . . . . . . . . . . . . . . . . . . . . . . . . . . . . . 2 Secondary 1 | . 1 . . . . . . . . . . . . . . . . . . . . . . . . . . . . . . . . Self-Inflicted Damage 570 | . . . 28 . . . 53 . . . . . . . . . 73 . . . 100 . 81 . . . 193 . . . . 42 . Shots 23 | . . . 2 . . . 1 . . . . . . . . . 2 . . . 1 . 3 . . . 6 . . . . 8 . Rammed 53 | 2 2 3 10 2 1 1 2 . . 1 3 2 . . . 1 1 1 . 1 . 5 2 . 2 . 5 . 1 . . 5 . Targets Rammed 59 | 2 2 4 11 2 1 2 2 . . 1 4 2 1 . . 1 1 1 . 1 . 5 2 . 2 . 6 . 1 . . 5 . Kicked . | . . . . . . . . . . . . . . . . . . . . . . . . . . . . . . . . . . Crushed 6 | . . 1 1 . . 1 . . . . 1 . 1 . . . . . . . . . . . . . 1 . . . . . . Highest Temperature 292 | 47 24 3 124 190 18 13 6 64 . 4 18 13 . 260 51 292 108 242 168 217 7 288 150 132 117 . 196 . 192 146 232 226 107 Average Temperature 43 | 28 16 3 13 43 6 6 5 45 . 4 12 13 . 50 27 135 44 72 74 107 7 48 20 27 22 . 73 . 100 42 59 53 14 Received Heat Transfer 6741 | . 120 54 237 . 135 502 711 171 . 213 303 428 . 129 . 443 63 92 53 . 162 572 855 . 68 86 534 4 33 81 62 136 494 Siege Activations 170 | . . . . . . . . . . . 3 1 . 3 . 7 5 10 3 3 4 11 16 . 8 11 25 1 10 4 9 32 4 Total Turns 6430 | . . . . . . . . . . . 218 6 . 100 . 160 45 133 86 10 46 372 514 . 228 233 624 7 162 38 258 3051 139 Longest Duration 592 | . . . . . . . . . . . 186 6 . 70 . 58 16 28 42 7 18 116 136 . 87 46 81 7 35 22 118 592 80 Robots Corrupted 1 | . . . . . . . . . . . . . . . . . . . . . 1 . . . . . . . . . . . . Combat Hostiles 1 | . . . . . . . . . . . . . . . . . . . . . 1 . . . . . . . . . . . . Parts Fried 4 | . . . . . . . . . . . . . . . . . . . . . 4 . . . . . . . . . . . . Impact Corruptions 8 | . . . . . . . . . . . . . . . . . . 1 . . . . 1 . . . 1 . . . . 5 . Robots Melted 5 | . . . . . . . . . . . . . . . . . . . . . . . . . . 3 1 . 1 . . . . Combat Hostiles 5 | . . . . . . . . . . . . . . . . . . . . . . . . . . 3 1 . 1 . . . . Parts Melted 32 | . . . 9 . . 1 . . . 1 . . . 1 . 1 . . . . . . . . . 9 4 . 5 1 . . . Heat Transferred 14502 | 74 481 111 3034 74 592 1570 . 851 . 1221 . . . 1554 . . . . 540 . . . 100 . 629 1104 370 . 111 . . 1761 325 Parts Sabotaged 5 | . . . . . . . . . . . . . . . . . . . . . . . 4 . . . 1 . . . . . . Parts Stolen . | . . . . . . . . . . . . . . . . . . . . . . . . . . . . . . . . . . Parts Stripped . | . . . . . . . . . . . . . . . . . . . . . . . . . . . . . . . . . . Power Chain Reactions 7 | . . . . . . . . . . . . . . . . . . . . . . . . . . . . . . . . 5 2 Missiles Intercepted . | . . . . . . . . . . . . . . . . . . . . . . . . . . . . . . . . . . Alert | -11 -10 -10 -9 -9 -8 -8 -8 -8 -7 -7 -7 -7 -7 -7 -6 -6 -5 -5 -5 -5 -5 -4 -4 -4 -3 -3 -3 -2 -2 -2 -1 -1 -1 ------- Run | Scr Mat Min Mat Min Mat Gar Mat Gar Fac Gar Fac Gar Fac Gar Fac Gar Fac Ext Cet Arc Hub Fac Arm Lab Res Qua Sec Res Tes Gar Acc Com Ac0 Peak Influence 5208 | 5 185 58 695 270 146 1183 1103 1444 814 1174 1060 2104 1149 2256 1186 1474 1003 575 942 572 1449 802 1365 . 652 517 2181 1256 525 1856 1447 5208 . Initial 1226 | . 3 40 22 270 3 82 576 716 758 429 616 742 1104 818 1184 830 773 386 132 316 130 709 392 . . 82 264 1226 498 393 1113 925 . Average 1059 | 3 61 45 347 152 47 597 601 1168 768 909 717 1319 1129 1493 1184 1169 876 348 470 494 245 245 836 . 231 227 939 918 244 1180 1183 2898 . Maximum Alert Level 5 | . . . 2 1 . 4 4 4 3 4 3 5 4 5 4 4 3 2 3 2 4 3 4 . 2 2 5 4 2 5 4 5 . Low Security (%) 17 | 100 100 100 44 61 100 5 . . . . . . . . . . . 16 6 . 48 65 . . 60 48 . . 47 . . . . Level 1 10 | . . . 8 38 . 22 12 . . . . . . . . . . 37 23 24 48 8 19 . 13 37 11 . 36 3 . . . Level 2 15 | . . . 46 . . 35 54 . 9 19 59 . . . . . 3 45 54 75 . 5 26 . 25 13 24 . 15 18 . . . Level 3 20 | . . . . . . 35 29 36 90 69 40 30 . 20 . 21 96 . 15 . . 20 21 . . . 31 77 . 17 21 18 . Level 4 18 | . . . . . . . 3 63 . 11 . 52 100 29 100 78 . . . . 2 . 33 . . . 25 22 . 37 78 14 . Level 5 8 | . . . . . . . . . . . . 16 . 50 . . . . . . . . . . . . . . . 23 . 24 . High Security 8 | . . . . . . . . . . . . . . . . . . . . . . . . . . . 5 . . . . 42 . Max Security . | . . . . . . . . . . . . . . . . . . . . . . . . . . . . . . . . . . Squads Dispatched 161 | . 2 . 4 . 2 . 12 . 1 . 7 . 1 . . . 3 4 . . 5 6 10 . 6 7 22 2 10 . 12 45 . Investigation 13 | . 2 . 1 . . . 3 . 1 . 1 . . . . . 1 3 . . . . 1 . . . . . . . . . . Extermination 35 | . . . . . . . . . . . 1 . . . . . . . . . . 3 3 . 1 4 6 1 3 . 4 9 . Reinforcement 36 | . . . 1 . 2 . 4 . . . 1 . 1 . . . 2 1 . . 2 3 . . 5 2 6 1 2 . 1 2 . Assault 58 | . . . 2 . . . 2 . . . 1 . . . . . . . . . 1 . 6 . . 1 7 . . . 4 34 . Garrison 19 | . . . . . . . 3 . . . 3 . . . . . . . . . 2 . . . . . 3 . 5 . 3 . . Intercept . | . . . . . . . . . . . . . . . . . . . . . . . . . . . . . . . . . . Searches Triggered . | . . . . . . . . . . . . . . . . . . . . . . . . . . . . . . . . . . Construction Impeded 3 | . . . . . . . 2 . . . . . . . . . . . . . . . . . 1 . . . . . . . . Haulers Reinforced 13 | . . . . . . . . . . . 1 . . . . . . . . . 1 3 . . 4 . 2 . 1 . 1 . . Active Scanning Responses . | . . . . . . . . . . . . . . . . . . . . . . . . . . . . . . . . . . Cargo Convoy Interrupts . | . . . . . . . . . . . . . . . . . . . . . . . . . . . . . . . . . . Stealth | -11 -10 -10 -9 -9 -8 -8 -8 -8 -7 -7 -7 -7 -7 -7 -6 -6 -5 -5 -5 -5 -5 -4 -4 -4 -3 -3 -3 -2 -2 -2 -1 -1 -1 --------- Run | Scr Mat Min Mat Min Mat Gar Mat Gar Fac Gar Fac Gar Fac Gar Fac Gar Fac Ext Cet Arc Hub Fac Arm Lab Res Qua Sec Res Tes Gar Acc Com Ac0 Distress Signals 37 | . 1 . 3 . 2 . 1 . . 2 . . . . . . . 3 2 . 2 . . . 5 1 2 . . . 2 11 . Communications Jammed 143 | . . . . . . . . . . . . . . . . . . . . . . 8 95 . . . . . . . 5 35 . Distress Signals 143 | . . . . . . . . . . . . . . . . . . . . . . 8 95 . . . . . . . 5 35 . Times Spotted 1160 | . 11 4 54 2 16 27 62 18 1 23 34 41 5 43 . 29 8 35 29 16 20 35 89 . 54 36 108 1 27 39 43 215 35 Peak Tracking Total 16 | . 4 2 7 2 4 7 8 4 . 8 5 8 3 6 . 6 3 10 8 2 6 6 10 . 9 7 16 1 7 5 7 10 5 Tactical Retreats 47 | . . . . . 2 3 1 2 . 2 4 2 . 4 . . . 1 . . 2 2 1 . 5 . 6 . 1 1 . 8 . Traps | -11 -10 -10 -9 -9 -8 -8 -8 -8 -7 -7 -7 -7 -7 -7 -6 -6 -5 -5 -5 -5 -5 -4 -4 -4 -3 -3 -3 -2 -2 -2 -1 -1 -1 ------- Run | Scr Mat Min Mat Min Mat Gar Mat Gar Fac Gar Fac Gar Fac Gar Fac Gar Fac Ext Cet Arc Hub Fac Arm Lab Res Qua Sec Res Tes Gar Acc Com Ac0 Traps Triggered 39 | . 1 . 1 . . 6 2 . . 3 1 5 . 8 . 1 . 1 . . 1 1 2 . . . . . 1 1 . 4 . Indirectly 1 | . . . . . . . . . . . . . . . . . . . . . 1 . . . . . . . . . . . . Trap Hack Attempts . | . . . . . . . . . . . . . . . . . . . . . . . . . . . . . . . . . . Triggered . | . . . . . . . . . . . . . . . . . . . . . . . . . . . . . . . . . . Disarmed . | . . . . . . . . . . . . . . . . . . . . . . . . . . . . . . . . . . Reprogrammed . | . . . . . . . . . . . . . . . . . . . . . . . . . . . . . . . . . . Reused . | . . . . . . . . . . . . . . . . . . . . . . . . . . . . . . . . . . Traps Extracted . | . . . . . . . . . . . . . . . . . . . . . . . . . . . . . . . . . . Installed . | . . . . . . . . . . . . . . . . . . . . . . . . . . . . . . . . . . Triggered . | . . . . . . . . . . . . . . . . . . . . . . . . . . . . . . . . . . Machines | -11 -10 -10 -9 -9 -8 -8 -8 -8 -7 -7 -7 -7 -7 -7 -6 -6 -5 -5 -5 -5 -5 -4 -4 -4 -3 -3 -3 -2 -2 -2 -1 -1 -1 ---------- Run | Scr Mat Min Mat Min Mat Gar Mat Gar Fac Gar Fac Gar Fac Gar Fac Gar Fac Ext Cet Arc Hub Fac Arm Lab Res Qua Sec Res Tes Gar Acc Com Ac0 Machines Disabled 151 | . . . 1 1 2 3 5 4 . 3 3 6 . 9 . 1 4 3 5 1 26 9 10 1 . 10 14 1 5 6 3 9 6 Max in Single Turn 15 | . . . 1 . 1 1 1 2 . 1 1 1 . 2 . 1 3 1 2 1 15 1 2 1 . 1 1 1 1 1 1 2 2 Garrison Access 3 | . . . . . . . . . . . . . . . . . . . . . 1 . . . . 1 . . . . 1 . . Garrison Relay 19 | . . . . . . 1 . 2 . 1 . 5 . 7 . 1 . . . . . . . . . . . . . 2 . . . Phase Generator 3 | . . . . . . . . 1 . . . . . 1 . . . . . . . . . . . . . . . . . 1 . Network Hub 2 | . . . . . . . . . . . . . . . . . . . . . 2 . . . . . . . . . . . . Energy Cycler 1 | . . . . . . . . . . . . . . . . . . . . . . . 1 . . . . . . . . . . Machines Sabotaged . | . . . . . . . . . . . . . . . . . . . . . . . . . . . . . . . . . . Garrisons Compromised . | . . . . . . . . . . . . . . . . . . . . . . . . . . . . . . . . . . Overloaded Fab Kills . | . . . . . . . . . . . . . . . . . . . . . . . . . . . . . . . . . . Hacking | -11 -10 -10 -9 -9 -8 -8 -8 -8 -7 -7 -7 -7 -7 -7 -6 -6 -5 -5 -5 -5 -5 -4 -4 -4 -3 -3 -3 -2 -2 -2 -1 -1 -1 --------- Run | Scr Mat Min Mat Min Mat Gar Mat Gar Fac Gar Fac Gar Fac Gar Fac Gar Fac Ext Cet Arc Hub Fac Arm Lab Res Qua Sec Res Tes Gar Acc Com Ac0 Machines Accessed 138 | . 5 1 10 1 4 5 8 2 4 1 5 3 3 3 1 . 5 13 . . 8 5 7 . 2 5 10 3 10 4 6 4 . Terminals 102 | . 5 . 6 1 2 5 5 2 1 1 3 3 2 3 . . 4 12 . . 7 3 5 . 2 3 8 1 7 4 4 3 . Fabricators 4 | . . . . . . . . . . . . . . . . . 1 . . . . . 1 . . . . 1 . . 1 . . Repair Stations 12 | . . . 2 . 1 . 1 . 1 . . . . . . . . 1 . . . 2 1 . . 1 . 1 1 . . . . Recycling Units 2 | . . . 1 . . . . . . . . . . . . . . . . . . . . . . . . . . . . 1 . Scanalyzers 7 | . . . 1 . . . 1 . 1 . 1 . . . . . . . . . . . . . . . 2 . 1 . . . . Garrison Access 10 | . . . . . 1 . 1 . 1 . 1 . 1 . 1 . . . . . 1 . . . . 1 . . 1 . 1 . . Total Hacks 457 | . 24 1 38 5 9 7 27 6 14 3 11 5 6 5 1 . 13 33 . . 21 49 29 . 16 14 31 19 30 11 15 14 . Successful 249 | . 17 1 31 2 7 4 16 2 9 . 6 2 4 3 1 . 7 15 . . 12 24 16 . 9 6 14 6 21 4 6 4 . Failed 208 | . 7 . 7 3 2 3 11 4 5 3 5 3 2 2 . . 6 18 . . 9 25 13 . 7 8 17 13 9 7 9 10 . Catastrophic 28 | . . . 2 . 1 1 3 . . . . . 1 . . . 2 1 . . 1 3 1 . 1 1 1 1 1 1 2 4 . Database Lockouts . | . . . . . . . . . . . . . . . . . . . . . . . . . . . . . . . . . . Manual 191 | . 22 . 14 4 2 . 12 . 4 . 1 . 1 . . . 5 13 1 . 14 20 20 . 13 1 7 12 9 1 4 11 . Terminals 349 | . 24 . 19 5 3 7 18 6 4 3 6 5 5 5 . . 10 29 . . 20 33 22 . 16 10 26 12 26 11 12 12 . Fabricators 11 | . . . . . . . . . . . . . . . . . 3 . . . . . 2 . . . . 4 . . 2 . . Repair Stations 64 | . . . 16 . 5 . 4 . 6 . . . . . . . . 4 . . . 16 5 . . 3 . 3 2 . . . . Recycling Units 3 | . . . 1 . . . . . . . . . . . . . . . . . . . . . . . . . . . . 2 . Scanalyzers 19 | . . . 2 . . . 4 . 3 . 4 . . . . . . . . . . . . . . . 5 . 1 . . . . Garrison Access 10 | . . . . . 1 . 1 . 1 . 1 . 1 . 1 . . . . . 1 . . . . 1 . . 1 . 1 . . Terminal Hacks 126 | . 12 1 7 2 . 4 4 2 1 . 2 2 2 3 . . 5 13 . . 7 8 7 . 7 3 9 4 12 4 4 1 . Record 1 | . . . . . . . . . . . . . . . . . . . . . . . . . . . . . . . 1 . . Part Schematic 1 | . . . . . . . . . . . . . . . . . . . . . 1 . . . . . . . . . . . . Robot Analysis 4 | . 2 . . . . . . . . . . . . . . . . . . . . . . . . 1 1 . . . . . . Prototype ID Bank 10 | . 6 . 2 1 . . . . . . . . . . . . . 1 . . . . . . . . . . . . . . . Open Door 15 | . . 1 . . . 1 . . . . . 1 . 1 . . 1 7 . . . . . . . . 3 . . . . . . Open DSF 1 | . . . . . . . . . . . 1 . . . . . . . . . . . . . . . . . . . . . . Branch Access Points 7 | . . . 1 . . . . . . . . . 1 . . . 1 . . . . 1 . . 1 . . 1 . . 1 . . Emergency Access Points 5 | . . . . . . 1 . 1 . . . 1 . 1 . . . . . . . . . . . . . . . 1 . . . Terminal Index 8 | . 1 . . . . . . . 1 . 1 . . . . . 1 . . . 1 1 . . . 1 . . 1 . . . . Repair Station Index 1 | . . . 1 . . . . . . . . . . . . . . . . . . . . . . . . . . . . . . Alert Level 7 | . 1 . 1 . . . 1 . . . . . . . . . 1 . . . . . . . 1 . . . 2 . . . . Unreport Threat 28 | . . . . . . . 3 . . . . . . . . . 1 4 . . 1 4 3 . 4 . . 3 3 . 2 . . Locate Traps 5 | . . . . . . . . . . . . . . . . . . . . . 1 . . . . . 1 . 2 . . 1 . Recall Investigation 1 | . . . . . . . . . . . . . . . . . . . . . . . 1 . . . . . . . . . . Recall Extermination 2 | . . . . . . . . . . . . . . . . . . . . . . 1 . . 1 . . . . . . . . Hauler Manifests 3 | . 1 . 1 . . . . . . . . . . . . . . . . . . . . . . . 1 . . . . . . Zone Layout 20 | . 1 . 1 1 . . . . . . . . 1 . . . . 1 . . 3 1 3 . . 1 3 . 4 . . . . Garrison Registry 3 | . . . . . . 1 . 1 . . . . . . . . . . . . . . . . . . . . . 1 . . . Patrol Navigation 3 | . . . . . . 1 . . . . . . . 1 . . . . . . . . . . . . . . . 1 . . . Security Stations 1 | . . . . . . . . . . . . . . . . . . . . . . . . . . . . . . 1 . . . Fabricator Hacks 2 | . . . . . . . . . . . . . . . . . 1 . . . . . 1 . . . . . . . . . . Load Schematic 1 | . . . . . . . . . . . . . . . . . 1 . . . . . . . . . . . . . . . . Build 1 | . . . . . . . . . . . . . . . . . . . . . . . 1 . . . . . . . . . . Repair Station Hacks 50 | . . . 16 . 4 . 4 . 4 . . . . . . . . 1 . . . 13 4 . . 1 . 1 2 . . . . Scan Component 27 | . . . 8 . 2 . 2 . 2 . . . . . . . . 1 . . . 7 2 . . 1 . 1 1 . . . . Repair 23 | . . . 8 . 2 . 2 . 2 . . . . . . . . . . . . 6 2 . . . . . 1 . . . . Recycling Unit Hacks 1 | . . . . . . . . . . . . . . . . . . . . . . . . . . . . . . . . 1 . Report Inventory 1 | . . . . . . . . . . . . . . . . . . . . . . . . . . . . . . . . 1 . Scanalyzer 14 | . . . 2 . . . 4 . 2 . 2 . . . . . . . . . . . . . . . 3 . 1 . . . . Insert Component 9 | . . . 1 . . . 2 . 1 . 1 . . . . . . . . . . . . . . . 3 . 1 . . . . Analyze 5 | . . . 1 . . . 2 . 1 . 1 . . . . . . . . . . . . . . . . . . . . . . Garrison Access Hacks 10 | . . . . . 1 . 1 . 1 . 1 . 1 . 1 . . . . . 1 . . . . 1 . . 1 . 1 . . Unlock Access 8 | . . . . . 1 . 1 . 1 . 1 . 1 . 1 . . . . . 1 . . . . . . . 1 . . . . Seal Access 2 | . . . . . . . . . . . . . . . . . . . . . . . . . . 1 . . . . 1 . . Unauthorized Hacks 46 | . 5 . 6 . 2 . 3 . 1 . 1 . 1 . . . 1 1 . . 4 3 4 . 2 1 2 1 5 . 1 2 . Terminals 44 | . 5 . 5 . 2 . 3 . 1 . 1 . 1 . . . 1 1 . . 4 3 3 . 2 1 2 1 5 . 1 2 . Track 1 | . . . . . 1 . . . . . . . . . . . . . . . . . . . . . . . . . . . . Assimilate 4 | . . . . . . . . . 1 . . . 1 . . . . . . . 1 . . . . 1 . . . . . . . Botnet 38 | . 5 . 5 . 1 . 3 . . . 1 . . . . . 1 1 . . 3 3 2 . 2 . 2 1 5 . 1 2 . Disrupt 1 | . . . . . . . . . . . . . . . . . . . . . . . 1 . . . . . . . . . . Fabricators 1 | . . . . . . . . . . . . . . . . . . . . . . . 1 . . . . . . . . . . Prioritize 1 | . . . . . . . . . . . . . . . . . . . . . . . 1 . . . . . . . . . . Repair Stations . | . . . . . . . . . . . . . . . . . . . . . . . . . . . . . . . . . . Recycling Units 1 | . . . 1 . . . . . . . . . . . . . . . . . . . . . . . . . . . . . . Tunnel 1 | . . . 1 . . . . . . . . . . . . . . . . . . . . . . . . . . . . . . Scanalyzers . | . . . . . . . . . . . . . . . . . . . . . . . . . . . . . . . . . . Garrison Access . | . . . . . . . . . . . . . . . . . . . . . . . . . . . . . . . . . . Data Cores Recovered 1 | . . . . . . . . . . . . . . . . . . . . . . . . . . . . . . . 1 . . Used . | . . . . . . . . . . . . . . . . . . . . . . . . . . . . . . . . . . Hacking Detections 108 | . 4 . 9 1 3 3 7 2 4 1 4 1 3 2 . . 4 9 . . 7 5 6 . 2 3 7 3 6 3 5 4 . Full Trace Events 14 | . 1 . . . 1 1 2 1 1 1 1 1 . . . . 1 2 . . . . . . . . . . . 1 . . . Feedback Events 2 | . . . . . . . . . . 1 . . . . . . . 1 . . . . . . . . . . . . . . . Corruption 1 | . . . . . . . . . . . . . . . . . . 1 . . . . . . . . . . . . . . . Hackware Fried 1 | . . . . . . . . . . 1 . . . . . . . . . . . . . . . . . . . . . . . Feedback Blocked . | . . . . . . . . . . . . . . . . . . . . . . . . . . . . . . . . . . Robot Schematics Acquired 1 | . . . . . . . . . . . . . . . . . . . . . . . . . . 1 . . . . . . . Robots Built 2 | . . . . . . . . . . . . . . . . . . . . . . . 2 . . . . . . . . . . Authchips . | . . . . . . . . . . . . . . . . . . . . . . . . . . . . . . . . . . Time 169 | . . . . . . . . . . . . . . . . . . . . . . . 169 . . . . . . . . . . Total Robot Build Rating 12 | . . . . . . . . . . . . . . . . . . . . . . . 12 . . . . . . . . . . Part Schematics Acquired 11 | . . . 1 . . . 1 . 1 . 1 . . . . . . . . . 1 . . . . 5 1 . . . . . . Parts Built . | . . . . . . . . . . . . . . . . . . . . . . . . . . . . . . . . . . Authchips . | . . . . . . . . . . . . . . . . . . . . . . . . . . . . . . . . . . Time . | . . . . . . . . . . . . . . . . . . . . . . . . . . . . . . . . . . Total Part Build Rating . | . . . . . . . . . . . . . . . . . . . . . . . . . . . . . . . . . . Parts Repaired 23 | . . . 8 . 2 . 2 . 2 . . . . . . . . . . . . 6 2 . . . . . 1 . . . . Time 1033 | . . . 269 . 70 . 82 . 56 . . . . . . . . . . . . 420 103 . . . . . 33 . . . . Parts Recycled . | . . . . . . . . . . . . . . . . . . . . . . . . . . . . . . . . . . Recycled Matter . | . . . . . . . . . . . . . . . . . . . . . . . . . . . . . . . . . . Retrieved Matter . | . . . . . . . . . . . . . . . . . . . . . . . . . . . . . . . . . . Retrieved Components . | . . . . . . . . . . . . . . . . . . . . . . . . . . . . . . . . . . Parts Scanalyzed 5 | . . . 1 . . . 2 . 1 . 1 . . . . . . . . . . . . . . . . . . . . . . Part Schematics Acquired 4 | . . . 1 . . . 1 . 1 . 1 . . . . . . . . . . . . . . . . . . . . . . Parts Damaged . | . . . . . . . . . . . . . . . . . . . . . . . . . . . . . . . . . . Bothacking | -11 -10 -10 -9 -9 -8 -8 -8 -8 -7 -7 -7 -7 -7 -7 -6 -6 -5 -5 -5 -5 -5 -4 -4 -4 -3 -3 -3 -2 -2 -2 -1 -1 -1 ------------ Run | Scr Mat Min Mat Min Mat Gar Mat Gar Fac Gar Fac Gar Fac Gar Fac Gar Fac Ext Cet Arc Hub Fac Arm Lab Res Qua Sec Res Tes Gar Acc Com Ac0 Used RIF Installer 7 | . . . . . . 1 . 1 . . . 1 . 1 . 2 . . . . . . . . . . . . . 1 . . . Command Fork 1 | . . . . . . . . 1 . . . . . . . . . . . . . . . . . . . . . . . . . Zone Cloak 1 | . . . . . . . . . . . . 1 . . . . . . . . . . . . . . . . . . . . . Structural Interface 1 | . . . . . . . . . . . . . . . . 1 . . . . . . . . . . . . . . . . . Program Shield 1 | . . . . . . . . . . . . . . 1 . . . . . . . . . . . . . . . . . . . Autooverride 1 | . . . . . . . . . . . . . . . . . . . . . . . . . . . . . . 1 . . . Autoassimilate 1 | . . . . . . . . . . . . . . . . 1 . . . . . . . . . . . . . . . . . Robots Hacked 19 | . . . . . . . . . . . . 4 . 10 . 3 . . 1 . . . . . . 1 . . . . . . . Non-combat . | . . . . . . . . . . . . . . . . . . . . . . . . . . . . . . . . . . Combat 19 | . . . . . . . . . . . . 4 . 10 . 3 . . 1 . . . . . . 1 . . . . . . . Robot Hacks Applied 22 | . . . . . . . . . . . . 6 . 10 . 3 . . 1 . . . . . . 2 . . . . . . . parse_system 1 | . . . . . . . . . . . . . . . . . . . 1 . . . . . . . . . . . . . . locate_prototypes 1 | . . . . . . . . . . . . . . . . . . . . . . . . . . 1 . . . . . . . scatter_targeting 1 | . . . . . . . . . . . . 1 . . . . . . . . . . . . . . . . . . . . . spike_heat 2 | . . . . . . . . . . . . . . 1 . 1 . . . . . . . . . . . . . . . . . go_dormant 1 | . . . . . . . . . . . . 1 . . . . . . . . . . . . . . . . . . . . . streamctrl_high 2 | . . . . . . . . . . . . 1 . 1 . . . . . . . . . . . . . . . . . . . formatsys_low 1 | . . . . . . . . . . . . . . . . . . . . . . . . . . 1 . . . . . . . formatsys_high 13 | . . . . . . . . . . . . 3 . 8 . 2 . . . . . . . . . . . . . . . . . Relay Couplers Released 79 | . . . . . . 5 . 8 . 3 . 20 . 28 . 5 . . . . 2 . . . . . . . . 8 . . . Machine Destruction 79 | . . . . . . 5 . 8 . 3 . 20 . 28 . 5 . . . . 2 . . . . . . . . 8 . . . Attached 10 | . . . . . . . . . . . . 2 . 6 . 1 . . . . . . . . . 1 . . . . . . . Fabnet Peak Effective % . | . . . . . . . . . . . . . . . . . . . . . . . . . . . . . . . . . . Robots Rewired 24 | . . . . . . 3 . . . . . 5 . 5 . . . 4 . . . . 4 . . . . . . 3 . . . Allies Hacked 2 | . . . . . . . . . . . . . . 2 . . . . . . . . . . . . . . . . . . . Hacks Repelled . | . . . . . . . . . . . . . . . . . . . . . . . . . . . . . . . . . . Allies | -11 -10 -10 -9 -9 -8 -8 -8 -8 -7 -7 -7 -7 -7 -7 -6 -6 -5 -5 -5 -5 -5 -4 -4 -4 -3 -3 -3 -2 -2 -2 -1 -1 -1 -------- Run | Scr Mat Min Mat Min Mat Gar Mat Gar Fac Gar Fac Gar Fac Gar Fac Gar Fac Ext Cet Arc Hub Fac Arm Lab Res Qua Sec Res Tes Gar Acc Com Ac0 Total Allies 69 | . . . . 3 . 3 . . 1 . . 11 . 18 . 3 . 14 5 . . . 6 . . 2 . . . 3 . . . Largest Group 6 | . . . . 3 2 3 . . 1 1 . 3 . 5 1 4 . 4 6 3 3 . 4 . . 1 . . . 3 2 . . Highest-Rated Group 636 | . . . . 40 32 101 . . 10 10 . 161 . 158 32 137 . 260 636 288 288 . 120 . . 49 . . . 174 109 . . Highest-Rated Ally 159 | . . . . 16 16 39 . . 10 10 . 88 . 85 32 47 . 159 159 96 96 . 49 . . 49 . . . 58 58 . . Total Orders 4 | . . . . . . . . . . . . . . . . . . . 4 . . . . . . . . . . . . . . STAY 2 | . . . . . . . . . . . . . . . . . . . 2 . . . . . . . . . . . . . . FOLLOW 2 | . . . . . . . . . . . . . . . . . . . 2 . . . . . . . . . . . . . . Ally Attacks 404 | . . . . 11 6 19 . . . . . 47 . 50 . 14 . 90 61 26 13 . 15 . . 9 . . . 37 6 . . Total Damage 10855 | . . . . 104 59 277 . . . . . 1700 . 847 . 476 . 2497 2016 826 419 . 287 . . . . . . 1140 207 . . Kills 84 | . . . . 2 . 5 . . . . . 12 . 11 . 3 . 18 17 3 5 . 1 . . . . . . 6 1 . . Allies Corrupted . | . . . . . . . . . . . . . . . . . . . . . . . . . . . . . . . . . . Allies Melted 1 | . . . . . . . . . . . . . . 1 . . . . . . . . . . . . . . . . . . . Intel | -11 -10 -10 -9 -9 -8 -8 -8 -8 -7 -7 -7 -7 -7 -7 -6 -6 -5 -5 -5 -5 -5 -4 -4 -4 -3 -3 -3 -2 -2 -2 -1 -1 -1 ------- Run | Scr Mat Min Mat Min Mat Gar Mat Gar Fac Gar Fac Gar Fac Gar Fac Gar Fac Ext Cet Arc Hub Fac Arm Lab Res Qua Sec Res Tes Gar Acc Com Ac0 Robot Analysis Total 4 | . 2 . . . . . . . . . . . . . . . . . . . . . . . . 1 1 . . . . . . Derelict Logs Recovered 3 | . . 1 . 2 . . . . . . . . . . . . . . . . . . . . . . . . . . . . . Drone Launches . | . . . . . . . . . . . . . . . . . . . . . . . . . . . . . . . . . . Drone Recoveries . | . . . . . . . . . . . . . . . . . . . . . . . . . . . . . . . . . . Exploration | -11 -10 -10 -9 -9 -8 -8 -8 -8 -7 -7 -7 -7 -7 -7 -6 -6 -5 -5 -5 -5 -5 -4 -4 -4 -3 -3 -3 -2 -2 -2 -1 -1 -1 ------------- Run | Scr Mat Min Mat Min Mat Gar Mat Gar Fac Gar Fac Gar Fac Gar Fac Gar Fac Ext Cet Arc Hub Fac Arm Lab Res Qua Sec Res Tes Gar Acc Com Ac0 Turns Passed 53028 | 86 692 990 2589 1033 1130 2109 2126 1388 443 1356 1025 2102 269 2406 111 1219 576 1462 803 468 573 1853 2531 352 972 2579 3274 334 1893 1278 2109 10084 813 Spaces Moved 18780 | 46 363 589 916 423 303 678 655 507 155 351 227 679 89 706 47 575 234 482 276 119 242 538 819 147 268 980 1273 190 821 603 738 3532 209 Core 17 | 17 . . . . . . . . . . . . . . . . . . . . . . . . . . . . . . . . . Treads 18763 | 29 363 589 916 423 303 678 655 507 155 351 227 679 89 706 47 575 234 482 276 119 242 538 819 147 268 980 1273 190 821 603 738 3532 209 Legs . | . . . . . . . . . . . . . . . . . . . . . . . . . . . . . . . . . . Wheels . | . . . . . . . . . . . . . . . . . . . . . . . . . . . . . . . . . . Hover . | . . . . . . . . . . . . . . . . . . . . . . . . . . . . . . . . . . Flight . | . . . . . . . . . . . . . . . . . . . . . . . . . . . . . . . . . . Fastest Speed 50 | 50 160 160 160 240 240 240 225 225 230 230 232 232 240 160 160 160 160 160 160 160 160 160 145 160 160 160 163 163 160 160 160 160 160 Average Speed 183 | 131 160 160 209 240 240 240 232 225 230 230 233 238 240 232 160 160 160 160 160 160 160 172 163 191 160 177 163 163 162 160 160 160 160 Slowest Speed 320 | 160 160 160 240 240 240 320 240 230 230 232 240 240 240 240 160 160 160 160 160 160 160 255 232 240 160 240 163 163 163 160 160 160 160 Overloaded Moves . | . . . . . . . . . . . . . . . . . . . . . . . . . . . . . . . . . . Propulsion Burnouts . | . . . . . . . . . . . . . . . . . . . . . . . . . . . . . . . . . . Robots Hopped . | . . . . . . . . . . . . . . . . . . . . . . . . . . . . . . . . . . Cave-ins Triggered 1 | . . . . . . . . . . . . . . . . . . 1 . . . . . . . . . . . . . . . Teleports 5 | . . . . . . . . . . . . . . . . . . . . . . . . . 1 2 1 . . . . 1 . Exploration Rate (%) 49 | 4 52 95 65 87 24 90 61 51 6 47 7 93 2 89 2 59 10 62 63 80 51 13 57 76 8 79 62 4 94 82 19 73 19 Regions Visited 33 Branch Regions 13 Pre-discovered Areas 2 | . . . 1 1 . . . . . . . . . . . . . . . . . . . . . . . . . . . . . Known Exits Taken 22 | . . . 1 1 1 . 1 . 1 . 1 . 1 . 1 . 1 1 1 1 1 1 1 1 1 1 1 1 1 . 1 . . Unknown Exits Taken 4 | 1 1 1 . . . . . . . . . . . . . . . . . . . . . . . . . . . . . 1 . Scrap Searched 2 | . . 1 . 1 . . . . . . . . . . . . . . . . . . . . . . . . . . . . . Spaces Dug 145 | . . . . . . . 1 . 2 . 3 . 1 3 2 . . 12 . . 5 30 51 . 1 18 . . 6 . 9 . 1 Terrain Destroyed 1602 | . . 1 67 . 1 10 119 78 2 9 21 25 5 101 3 7 31 30 3 22 342 104 122 . 57 34 72 2 33 25 32 103 141 Melee . | . . . . . . . . . . . . . . . . . . . . . . . . . . . . . . . . . . Projectile 447 | . . 1 15 . 1 9 33 5 2 9 21 25 3 7 1 4 . 27 3 21 30 66 28 . 8 24 6 1 16 9 . . 72 AOE 974 | . . . 52 . . . 85 73 . . . . . 93 . . 30 . . . 312 37 83 . 42 . 58 . . . . 79 30 Terrain Rammed . | . . . . . . . . . . . . . . . . . . . . . . . . . . . . . . . . . . Walls Destroyed . | . . . . . . . . . . . . . . . . . . . . . . . . . . . . . . . . . . Machines Disabled . | . . . . . . . . . . . . . . . . . . . . . . . . . . . . . . . . . . Actions | -11 -10 -10 -9 -9 -8 -8 -8 -8 -7 -7 -7 -7 -7 -7 -6 -6 -5 -5 -5 -5 -5 -4 -4 -4 -3 -3 -3 -2 -2 -2 -1 -1 -1 --------- Run | Scr Mat Min Mat Min Mat Gar Mat Gar Fac Gar Fac Gar Fac Gar Fac Gar Fac Ext Cet Arc Hub Fac Arm Lab Res Qua Sec Res Tes Gar Acc Com Ac0 Total 32854 | 60 425 621 1418 433 650 963 1051 628 237 754 579 990 119 1258 75 761 399 1063 506 355 349 1270 1660 208 579 1614 2106 209 1244 826 1565 7435 444 Wait 10245 | . 14 12 359 6 290 88 243 36 71 272 271 167 16 316 20 112 135 479 134 209 70 594 576 29 168 427 554 10 295 116 752 3382 22 Move 18740 | 45 362 588 915 422 302 676 654 505 154 349 226 677 89 704 46 573 233 480 275 118 241 537 818 146 267 979 1272 189 820 601 737 3531 209 Hop . | . . . . . . . . . . . . . . . . . . . . . . . . . . . . . . . . . . Pick Up 323 | 2 12 4 13 . 15 7 11 8 3 20 2 12 1 15 . 7 4 10 9 . . 14 24 4 14 16 21 2 6 2 3 50 12 Fast Attach 177 | 5 1 2 5 . . 2 2 2 1 2 . 1 . 5 . 1 1 3 3 3 . 12 22 8 . 15 13 . 21 8 . 30 9 Attach 114 | 1 . . 2 . 2 3 3 1 2 2 4 6 . 10 3 5 2 4 4 . 1 2 10 . 11 3 5 2 . 5 2 6 13 Detach 11 | . . . . . 1 . . . . . . . . . . . . . . . . . . . . 1 1 . . 3 1 1 3 Swap 309 | 1 4 . 18 . 4 8 20 6 3 7 11 6 1 15 . 6 8 6 9 7 3 13 34 2 7 25 23 2 6 3 3 40 8 Drop 365 | . 5 3 11 . 9 9 16 9 . 23 1 4 1 13 2 3 2 10 13 2 . 16 22 10 4 32 29 1 26 7 2 71 9 Fire 2272 | 4 25 8 84 3 26 95 100 61 3 74 60 85 11 118 4 53 13 44 59 15 34 77 139 9 106 116 182 3 69 59 65 309 159 Melee . | . . . . . . . . . . . . . . . . . . . . . . . . . . . . . . . . . . Ram . | . . . . . . . . . . . . . . . . . . . . . . . . . . . . . . . . . . Kick . | . . . . . . . . . . . . . . . . . . . . . . . . . . . . . . . . . . Crush 58 | 2 2 4 11 2 1 2 2 . . 1 4 2 . . . 1 1 1 . 1 . 5 2 . 2 . 6 . 1 . . 5 . Escape Stasis 25 | . . . . . . 8 . . . 4 . 2 . 10 . . . 1 . . . . . . . . . . . . . . . Rewire 215 | . . . . . . 65 . . . . . 28 . 52 . . . 25 . . . . 13 . . . . . . 22 . 10 . Trap . | . . . . . . . . . . . . . . . . . . . . . . . . . . . . . . . . . . Miscellaneous . | . . . . . . . . . . . . . . . . . . . . . . . . . . . . . . . . . . Route ------- -11/Scrapyard -10/Materials (discovered 2 exits: *Mat / *Min) -10/Mines (discovered 2 exits: *Mat x2) -9/Materials (discovered 3 exits: *Mat x2 / *Min) -9/Mines -8/Materials (discovered 2 exits: Fac / Gar) -8/Garrison (discovered 3 exits: *Mat x3) -8/Materials (discovered 3 exits: *Fac x2 / Gar) -8/Garrison (discovered 3 exits: *Fac x3) -7/Factory -7/Garrison -7/Factory (discovered 2 exits: *Fac / Gar) -7/Garrison (discovered 4 exits: *Fac x4) -7/Factory (discovered 3 exits: Low x2 / Gar) -7/Garrison (discovered 3 exits: *Fac x3) -6/Factory -6/Garrison (discovered 2 exits: *Fac x2) -5/Factory (discovered 4 exits: Upp x2 / *Ext x2) -5/Extension (discovered 2 exits: *Fac / *Cet) -5/Cetus (discovered 2 exits: *Fac / *Arc) -5/Archives (discovered 3 exits: *Fac / *Hub x2) -5/Hub_04(d) (discovered 2 exits: *Fac x2) -4/Factory (discovered 4 exits: *Res / Upp x2 / *Arm) -4/Armory -4/Lab -3/Research (discovered 2 exits: *Qua x2) -3/Quarantine (discovered 2 exits: *Res / *Sec) -3/Section 7 -2/Research (discovered 2 exits: *Tes x2) -2/Testing (discovered 2 exits: *Acc / Gar) -2/Garrison (discovered 3 exits: *Acc x3) -1/Access -1/Command (discovered 3 exits: [*Sur x2] / [*Ac0]) -1/Access_0 History --------- Turn | Location | Event 6 | -11/Scrapyard | Discovered new exit (range 14) 87 | -11/Scrapyard | Entered Materials 312 | -10/Materials | Build established: Mutant 421 | -10/Materials | Discovered new exit (range 10) 672 | -10/Materials | Discovered new exit (range 14) 779 | -10/Materials | Entered Mines 861 | -10/Mines | Discovered new exit (range 5) 910 | -10/Mines | Met a Derelict who couldn't figure out how to use a Trap Extractor 914 | -10/Mines | Discovered new exit (range 10) 1362 | -10/Mines | Received a Rocket Launcher from a helpful Derelict 1405 | -10/Mines | Learned 4 Materials zone layouts 1431 | -10/Mines | A weapon hastily lodged in a ceiling crevice suddenly fell to the ground 1769 | -10/Mines | Entered Materials 1769 | -9/Materials | Evolved 2 slots: Propulsion x1, Utility x1 1770 | -9/Materials | Identified exit to Materials 1820 | -9/Materials | Identified exit to Mines 3174 | -9/Materials | Destroyed 9 combat bots 3292 | -9/Materials | Repaired Hvy. Armor Plating 3369 | -9/Materials | First assault squad dispatched 3508 | -9/Materials | Repaired Ion Cannon 3542 | -9/Materials | Repaired Cooling System 3582 | -9/Materials | Repaired Lgt. Treads 3616 | -9/Materials | Repaired Med. Armor Plating 3643 | -9/Materials | Repaired Lgt. Treads 3671 | -9/Materials | Repaired Lgt. Treads 3722 | -9/Materials | Repaired Hvy. Ion Engine 4093 | -9/Materials | Discovered exit to Materials (range 10) 4358 | -9/Materials | Entered Mines 4452 | -9/Mines | Assisted by bots powering up and referring to "LRC-V3" 4490 | -9/Mines | Learned 4 Materials zone layouts 4894 | -9/Mines | Learned location of Storage (-8) 5143 | -9/Mines | Discovered exit to Materials (range 10) 5391 | -9/Mines | Entered Materials 5391 | -8/Materials | Accompanied by 2 allies 5391 | -8/Materials | Evolved 2 slots: Utility x1, Weapon x1 5392 | -8/Materials | Identified exit to Factory 5480 | -8/Materials | Repaired Rocket Launcher 5685 | -8/Materials | Build established: Tank 6092 | -8/Materials | Repaired Imp. Sensor Array 6162 | -8/Materials | Build established: Scavenger-Tank 6518 | -8/Materials | Identified exit to Garrison 6521 | -8/Materials | Entered Garrison 6582 | -8/Garrison | Triggered checkpoint 6958 | -8/Garrison | Triggered checkpoint 7234 | -8/Garrison | Triggered checkpoint 7574 | -8/Garrison | Discovered new exit (range 13) 7865 | -8/Garrison | Triggered checkpoint 8030 | -8/Garrison | Triggered checkpoint 8065 | -8/Garrison | Installed Relay Interface Framework 8112 | -8/Garrison | Garrison Relay disabled 8158 | -8/Garrison | Discovered new exit (range 9) 8189 | -8/Garrison | Spotted B-75 Beast 8245 | -8/Garrison | Found Imp. Powered Armor 8494 | -8/Garrison | Build established: Scavenger-Gunner 8592 | -8/Garrison | Discovered new exit (range 15) 8592 | -8/Garrison | Discovered new exit (range 67) 8592 | -8/Garrison | Discovered new exit (range 86) 8630 | -8/Garrison | Entered Materials 9084 | -8/Materials | Discovered exit to Factory (range 9) 9312 | -8/Materials | Repaired Coil Gun 9346 | -8/Materials | Repaired Imp. Treads 9967 | -8/Materials | Build established: Gunner 10447 | -8/Materials | Garrison activated, responded to threat 10630 | -8/Materials | First assault squad dispatched 10708 | -8/Materials | Destroyed 16 combat bots 10736 | -8/Materials | Discovered exit to Factory (range 11) 10754 | -8/Materials | Identified exit to Garrison 10756 | -8/Materials | Entered Garrison 10786 | -8/Garrison | Triggered checkpoint 10902 | -8/Garrison | Expanded RIF knowledge: Command Fork 10924 | -8/Garrison | Garrison Relay disabled 11086 | -8/Garrison | Phase Generator disabled 11144 | -8/Garrison | Triggered checkpoint 11258 | -8/Garrison | Garrison Relay disabled 11328 | -8/Garrison | Core integrity fell below 50% 11352 | -8/Garrison | Discovered exit to Factory (range 13) 11500 | -8/Garrison | Triggered checkpoint 11541 | -8/Garrison | Discovered exit to Factory (range 13) 11541 | -8/Garrison | Discovered exit to Factory (range 53) 11541 | -8/Garrison | Discovered exit to Factory (range 102) 11697 | -8/Garrison | Triggered checkpoint 12144 | -8/Garrison | Entered Factory 12144 | -7/Factory | Evolved 2 slots: Utility x2 12317 | -7/Factory | Repaired Imp. Powered Armor 12346 | -7/Factory | Repaired KE Penetrator 12571 | -7/Factory | Identified exit to Garrison 12587 | -7/Factory | Entered Garrison 12587 | -7/Garrison | Accompanied by 1 ally 12655 | -7/Garrison | Triggered checkpoint 12702 | -7/Garrison | Garrison Relay disabled 12874 | -7/Garrison | Triggered checkpoint 12898 | -7/Garrison | Destroyed 10 combat bots 12976 | -7/Garrison | Hacking Suite fried by hacking feedback 13404 | -7/Garrison | Discovered new exit (range 10) 13597 | -7/Garrison | Spotted B-75 Beast 13938 | -7/Garrison | Identified exit to Factory 13943 | -7/Garrison | Entered Factory 14343 | -7/Factory | First assault squad dispatched 14660 | -7/Factory | Discovered new exit (range 16) 14765 | -7/Factory | Garrison activated, responded to threat 14964 | -7/Factory | Identified exit to Garrison 14968 | -7/Factory | Entered Garrison 15220 | -7/Garrison | Triggered checkpoint 15266 | -7/Garrison | Garrison Relay disabled 15302 | -7/Garrison | Triggered checkpoint 15349 | -7/Garrison | Discovered new exit (range 5) 15359 | -7/Garrison | Identified exit to Factory 15580 | -7/Garrison | Triggered checkpoint 15630 | -7/Garrison | Triggered checkpoint 15678 | -7/Garrison | Triggered checkpoint 15708 | -7/Garrison | Triggered checkpoint 15830 | -7/Garrison | Triggered checkpoint 15895 | -7/Garrison | Garrison Relay disabled 15910 | -7/Garrison | Found embedded Infiltrators 16018 | -7/Garrison | Discovered exit to Factory (range 10) 16222 | -7/Garrison | Triggered checkpoint 16257 | -7/Garrison | Build established: Bothacker-Gunner 16443 | -7/Garrison | Expanded RIF knowledge: Zone Cloak 16477 | -7/Garrison | Garrison Relay disabled 16599 | -7/Garrison | Discovered exit to Factory (range 10) 16848 | -7/Garrison | Garrison Relay disabled 16904 | -7/Garrison | Triggered checkpoint 16970 | -7/Garrison | Garrison Relay disabled 17039 | -7/Garrison | Discovered exit to Factory (range 12) 17070 | -7/Garrison | Entered Factory 17185 | -7/Factory | Identified exit to Lower Caves 17336 | -7/Factory | Identified exit to Garrison 17339 | -7/Factory | Entered Garrison 17340 | -7/Garrison | Core integrity fell below 50% 17610 | -7/Garrison | Garrison Relay disabled 17677 | -7/Garrison | Garrison Relay disabled 17757 | -7/Garrison | Phase Generator disabled 17816 | -7/Garrison | Triggered checkpoint 17872 | -7/Garrison | Garrison Relay disabled 17920 | -7/Garrison | Triggered checkpoint 18096 | -7/Garrison | Triggered checkpoint 18126 | -7/Garrison | Triggered checkpoint 18127 | -7/Garrison | Triggered checkpoint 18206 | -7/Garrison | Triggered checkpoint 18306 | -7/Garrison | Triggered checkpoint 18372 | -7/Garrison | Garrison Relay disabled 18376 | -7/Garrison | Build established: Bothacker-Mutant 18440 | -7/Garrison | Discovered new exit (range 10) 18459 | -7/Garrison | Identified exit to Factory 18885 | -7/Garrison | Spotted B-75 Beast 18920 | -7/Garrison | Hijacked Beast 4a control node with streamctrl_high 19118 | -7/Garrison | Destroyed Beast 4a 19182 | -7/Garrison | Expanded RIF knowledge: Program Shield 19211 | -7/Garrison | Discovered exit to Factory (range 6) 19289 | -7/Garrison | Garrison Relay disabled 19321 | -7/Garrison | Rescued a captive Derelict 19322 | -7/Garrison | Rescued a captive Derelict 19570 | -7/Garrison | Discovered exit to Factory (range 13) 19745 | -7/Garrison | Entered Factory 19745 | -6/Factory | Accompanied by 1 ally 19745 | -6/Factory | Evolved 2 slots: Propulsion x1, Weapon x1 19852 | -6/Factory | Identified exit to Garrison 19856 | -6/Factory | Entered Garrison 19856 | -6/Garrison | Accompanied by 1 ally 20050 | -6/Garrison | Expanded RIF knowledge: Autoassimilate 20138 | -6/Garrison | Triggered checkpoint 20142 | -6/Garrison | Destroyed 7 combat bots 20200 | -6/Garrison | Discovered new exit (range 8) 20210 | -6/Garrison | Identified exit to Factory 20382 | -6/Garrison | Triggered checkpoint 20393 | -6/Garrison | Build established: Scavenger-Gunner 20432 | -6/Garrison | Triggered checkpoint 20518 | -6/Garrison | Garrison Relay disabled 20608 | -6/Garrison | Expanded RIF knowledge: Structural Interface 20746 | -6/Garrison | Triggered checkpoint 20771 | -6/Garrison | Discovered exit to Factory (range 13) 20940 | -6/Garrison | Triggered checkpoint 21075 | -6/Garrison | Entered Factory 21075 | -5/Factory | Evolved 2 slots: Utility x2 21316 | -5/Factory | Identified exit to Upper Caves 21316 | -5/Factory | Identified exit to Extension 21651 | -5/Factory | Entered Extension 22115 | -5/Extension | Rescued a captive Derelict 22116 | -5/Extension | Rescued a captive Derelict 22241 | -5/Extension | Rescued a captive Derelict 22241 | -5/Extension | Rescued a captive Derelict 22376 | -5/Extension | Crushed by falling debris 22384 | -5/Extension | Rescued a captive Derelict 22385 | -5/Extension | Rescued a captive Derelict 22388 | -5/Extension | System corruption reached 10% 22412 | -5/Extension | Rescued a captive Derelict 22476 | -5/Extension | Disrupted transfer network 22516 | -5/Extension | Rescued A7 22850 | -5/Extension | Rescued a captive Derelict 22974 | -5/Extension | Rescued a captive Derelict 23078 | -5/Extension | Discovered new exit (range 10) 23080 | -5/Extension | Discovered new exit (range 6) 23081 | -5/Extension | Build established: Scavenger-Tank 23111 | -5/Extension | Identified exit to Cetus 23112 | -5/Extension | Disrupted transfer network 23113 | -5/Extension | Entered Cetus 23113 | -5/Cetus | Accompanied by 2 allies (A7) 23118 | -5/Cetus | Acquired a Cetus Manufacturing Module code from A7 23136 | -5/Cetus | Spotted Cetus Guard 23136 | -5/Cetus | Spotted Cetus Guard 23146 | -5/Cetus | Allies destroyed Cetus Guard 23146 | -5/Cetus | Spotted Cetus Guard 23152 | -5/Cetus | Spotted Cetus Guard 23158 | -5/Cetus | Allies destroyed Cetus Guard 23161 | -5/Cetus | Destroyed Cetus Guard 23165 | -5/Cetus | Destroyed Cetus Guard 23255 | -5/Cetus | Started Cetus Manufacturing Module 23280 | -5/Cetus | Manufactured an Enhanced Grunt 23305 | -5/Cetus | Manufactured an Enhanced Grunt 23330 | -5/Cetus | Manufactured an Enhanced Grunt 23355 | -5/Cetus | Manufactured an Enhanced Grunt 23380 | -5/Cetus | Manufactured an Enhanced Grunt 23467 | -5/Cetus | Found Med. Regenerative Plating 23485 | -5/Cetus | Destroyed A7 23490 | -5/Cetus | Extracted ID and sensor layout for unrecognized location from A7's data core 23559 | -5/Cetus | Discovered new exit (range 16) 23589 | -5/Cetus | Spotted Cetus Guard 23589 | -5/Cetus | Spotted Cetus Guard 23597 | -5/Cetus | Destroyed Cetus Guard 23598 | -5/Cetus | Spotted Cetus Guard 23610 | -5/Cetus | Spotted Cetus Guard 23611 | -5/Cetus | Destroyed Cetus Guard 23618 | -5/Cetus | Destroyed Cetus Guard 23632 | -5/Cetus | Destroyed Cetus Guard 23657 | -5/Cetus | Discovered new exit (range 15) 23665 | -5/Cetus | Met Revision 17 23666 | -5/Cetus | Destroyed Revision 17 23790 | -5/Cetus | Cetus Manufacturing Module disabled 23792 | -5/Cetus | Build established: Scavenger-Gunner 23914 | -5/Cetus | Identified exit to Archives 23916 | -5/Cetus | Entered Archives 23916 | -5/Archives | Accompanied by 3 allies 24299 | -5/Archives | Discovered new exit (range 16) 24341 | -5/Archives | Discovered new exit (range 15) 24355 | -5/Archives | Discovered new exit (range 14) 24377 | -5/Archives | Identified exit to Hub_04(d) 24384 | -5/Archives | Entered Hub_04(d) 24384 | -5/Hub_04(d) | Accompanied by 3 allies 24466 | -5/Hub_04(d) | Discovered new exit (range 16) 24576 | -5/Hub_04(d) | Spotted B-75 Beast 24741 | -5/Hub_04(d) | Identified exit to Garrison 24784 | -5/Hub_04(d) | Garrison activated, responded to threat 24877 | -5/Hub_04(d) | Discovered new exit (range 17) 24941 | -5/Hub_04(d) | Network Hub disabled 24943 | -5/Hub_04(d) | Network Hub disabled 24953 | -5/Hub_04(d) | Disrupted transfer network 24955 | -5/Hub_04(d) | Identified exit to Factory 24957 | -5/Hub_04(d) | Entered Factory 24957 | -4/Factory | Evolved 2 slots: Power x1, Utility x1 25077 | -4/Factory | Repaired Broken KE Penetrator 25127 | -4/Factory | Repaired Adv. KE Penetrator 25183 | -4/Factory | Repaired Centrium Heavy Treads 25204 | -4/Factory | Build established: Scavenger-Skirmisher 25267 | -4/Factory | Identified exit to Upper Caves 25267 | -4/Factory | Identified exit to Armory 25548 | -4/Factory | Discovered new exit (range 7) 25559 | -4/Factory | Identified exit to Research 25929 | -4/Factory | Repaired Lrn. Sensor Array 26041 | -4/Factory | Repaired Centrium Heavy Treads 26151 | -4/Factory | Repaired Centrium Medium Armor Plating 26760 | -4/Factory | Destroyed 10 combat bots 26810 | -4/Factory | Entered Armory 27000 | -4/Armory | Repaired Centrium Medium Armor Plating 27050 | -4/Armory | Repaired Adv. KE Penetrator 27309 | -4/Armory | Found Unknown Launcher 27310 | -4/Armory | Identified Fusion Bomb Launcher 27647 | -4/Armory | Energy Cycler disabled 27998 | -4/Armory | Destroyed 8 combat bots 28047 | -4/Armory | Destroyed 10 combat bots 28060 | -4/Armory | First assault squad dispatched 28162 | -4/Armory | Lost 4 parts (2p1n1u) 28523 | -4/Armory | Found Mni. Smartbomb Launcher 28806 | -4/Armory | System corruption reached 10% 29146 | -4/Armory | Fabricated Y-64 Sentinel? 29189 | -4/Armory | Build established: Hacker-Gunner 29266 | -4/Armory | Discovered new exit (range 6) 29272 | -4/Armory | Identified exit to Lab 29341 | -4/Armory | Entered Lab 29343 | -4/Lab | Discovered exit to Research (range 9) 29360 | -4/Lab | Hidden lab's door opened automatically 29360 | -4/Lab | Sensor layout match revealed 29361 | -4/Lab | Gained access to the hidden lab's interior 29505 | -4/Lab | Found Prototype Hackware 29505 | -4/Lab | Identified Quantum Router 29514 | -4/Lab | Found Prototype Device 29514 | -4/Lab | Identified AEGIS Remote Shield 29528 | -4/Lab | Found Prototype Energy Cannon 29529 | -4/Lab | Identified Warp Cannon 29570 | -4/Lab | Found Alien Artifact 29570 | -4/Lab | Identified Core Expander 29570 | -4/Lab | Installed Core Expander, added new Propulsion slot 29589 | -4/Lab | Found Alien Artifact 29589 | -4/Lab | Identified Integrated Mediator 29589 | -4/Lab | Installed Integrated Mediator, increased core attachment efficiency. 29608 | -4/Lab | Found Alien Artifact 29693 | -4/Lab | Entered Research 29693 | -3/Research | Evolved 2 slots: Propulsion x1, Utility x1 29870 | -3/Research | Lost 3 parts (2u1w) 29941 | -3/Research | Identified Transdimensional Reconstructor 29941 | -3/Research | Warped through subspace 30150 | -3/Research | Destroyed 16 combat bots 30164 | -3/Research | Build established: Scavenger-Gunner 30327 | -3/Research | Identified exit to Quarantine 30665 | -3/Research | Entered Quarantine 30677 | -3/Quarantine | Spotted Alpha 7 30720 | -3/Quarantine | Destroyed Alpha 7 30735 | -3/Quarantine | Found Prototype Ballistic Gun 30736 | -3/Quarantine | Identified Multirail 30749 | -3/Quarantine | Found Prototype Processor 30749 | -3/Quarantine | Identified Exp. Targeting Computer 30760 | -3/Quarantine | Found Prototype Device 30761 | -3/Quarantine | Identified Exp. ECM Suite 31074 | -3/Quarantine | Found Transdimensional Reconstructor 31081 | -3/Quarantine | Found Transdimensional Reconstructor 31196 | -3/Quarantine | Build established: Scavenger-Mutant 31546 | -3/Quarantine | Discovered new exit (range 16) 31593 | -3/Quarantine | Warped through subspace 31609 | -3/Quarantine | Warped through subspace 31664 | -3/Quarantine | Found Transdimensional Reconstructor 31667 | -3/Quarantine | Found Transdimensional Reconstructor 31803 | -3/Quarantine | Build established: Scavenger-Gunner 32438 | -3/Quarantine | Found Alien Artifact 32734 | -3/Quarantine | Identified exit to Research 32915 | -3/Quarantine | First assault squad dispatched 33039 | -3/Quarantine | Spotted Fortress 33049 | -3/Quarantine | Destroyed Fortress 33079 | -3/Quarantine | Found Prototype Reactor 33079 | -3/Quarantine | Identified Vortex Chain Reactor 33089 | -3/Quarantine | Found Vortex Chain Reactor 33094 | -3/Quarantine | Found Prototype Device 33094 | -3/Quarantine | Identified Exp. EM Disruption Field 33105 | -3/Quarantine | Found Prototype Protection 33105 | -3/Quarantine | Identified Centrium Heavy Armor Plating 33237 | -3/Quarantine | Discovered new exit (range 5) 33242 | -3/Quarantine | Identified exit to Section 7 33244 | -3/Quarantine | Entered Section 7 33394 | -3/Section 7 | Build established: Scavenger-Tank 33744 | -3/Section 7 | First assault squad dispatched 34012 | -3/Section 7 | Found Alien Artifact 34174 | -3/Section 7 | Identified Integrated Dissipator 34174 | -3/Section 7 | Installed Integrated Dissipator, increased core heat dissipation (+20) 34219 | -3/Section 7 | System corruption reached 10% 34333 | -3/Section 7 | Found Alien Artifact 34419 | -3/Section 7 | Identified Integrated Reactor 34419 | -3/Section 7 | Installed Integrated Reactor, increased core energy generation (+10) 34795 | -3/Section 7 | Found Alien Artifact 34998 | -3/Section 7 | Identified Integrity Redistributor 35116 | -3/Section 7 | Destroyed 8 combat bots 35117 | -3/Section 7 | Found Integrated Dissipator 35117 | -3/Section 7 | Installed Integrated Dissipator, increased core heat dissipation (+20) 35141 | -3/Section 7 | Discovered exit to Research (range 13) 35369 | -3/Section 7 | Spotted B-86 Titan 35382 | -3/Section 7 | Destroyed B-86 Titan 35447 | -3/Section 7 | Spotted Alpha 7 35452 | -3/Section 7 | Spotted Alpha 7 35473 | -3/Section 7 | Destroyed Alpha 7 35487 | -3/Section 7 | Used Integrity Redistributor, redistributed integrity from core (-490) 35488 | -3/Section 7 | Core integrity fell below 50% 35524 | -3/Section 7 | Found Multirail 35527 | -3/Section 7 | Found Exp. Targeting Computer 35612 | -3/Section 7 | Garrison activated, responded to threat 35638 | -3/Section 7 | Destroyed Alpha 7 35676 | -3/Section 7 | Found Exp. Targeting Computer 35679 | -3/Section 7 | Destroyed 7 combat bots 35743 | -3/Section 7 | Spotted Executioner 35743 | -3/Section 7 | Spotted Executioner 35750 | -3/Section 7 | Destroyed Executioner 35756 | -3/Section 7 | Destroyed Executioner 35807 | -3/Section 7 | Found Prototype Processor 35807 | -3/Section 7 | Identified Exp. Core Analyzer 36023 | -3/Section 7 | Spotted B-99 Colossus 36085 | -3/Section 7 | Found Integrity Redistributor 36089 | -3/Section 7 | Found Integrity Redistributor 36149 | -3/Section 7 | Found Alien Artifact 36149 | -3/Section 7 | Identified LRC Energy Well 36149 | -3/Section 7 | Installed LRC Energy Well, increased energy storage capacity (+250) 36326 | -3/Section 7 | High security lockdown imminent 36392 | -3/Section 7 | Warped through subspace 36406 | -3/Section 7 | High security lockdown engaged 36440 | -3/Section 7 | Spotted Executioner 36446 | -3/Section 7 | Destroyed Executioner 36473 | -3/Section 7 | Destroyed 17 combat bots 36518 | -3/Section 7 | Entered Research 36518 | -2/Research | Evolved 2 slots: Power x1, Utility x1 36592 | -2/Research | Identified exit to Testing 36768 | -2/Research | Build established: Scavenger-Gunner 36852 | -2/Research | Entered Testing 36985 | -2/Testing | Found Prototype Ballistic Gun 36985 | -2/Testing | Identified Hyp. Multirail 37031 | -2/Testing | Found Prototype Energy Gun 37031 | -2/Testing | Identified Warp Gun 37445 | -2/Testing | Garrison activated, responded to threat 37549 | -2/Testing | Found Prototype Hackware 37549 | -2/Testing | Identified Exp. Hacking Suite 37646 | -2/Testing | Garrison activated, responded to threat 37946 | -2/Testing | Repaired Exp. Cooling System 38030 | -2/Testing | Destroyed 7 combat bots 38103 | -2/Testing | Discovered new exit (range 13) 38170 | -2/Testing | Found Prototype Device 38170 | -2/Testing | Identified Exp. Transmission Jammer 38315 | -2/Testing | Identified Subatomic Replicator 38692 | -2/Testing | Garrison activated, responded to threat 38743 | -2/Testing | Identified exit to Garrison 38745 | -2/Testing | Entered Garrison 38908 | -2/Garrison | Triggered checkpoint 38913 | -2/Garrison | System corruption reached 10% 38939 | -2/Garrison | Garrison Relay disabled 38982 | -2/Garrison | Spotted B-90 Cyclops 39004 | -2/Garrison | Destroyed B-90 Cyclops 39026 | -2/Garrison | Triggered checkpoint 39037 | -2/Garrison | Triggered checkpoint 39097 | -2/Garrison | Destroyed 11 combat bots 39100 | -2/Garrison | Triggered checkpoint 39151 | -2/Garrison | Expanded RIF knowledge: Autooverride 39213 | -2/Garrison | Discovered new exit (range 5) 39251 | -2/Garrison | Triggered checkpoint 39254 | -2/Garrison | Q-Series assembled to engage unique threat in Access 39278 | -2/Garrison | Garrison Relay disabled 39328 | -2/Garrison | Triggered checkpoint 39447 | -2/Garrison | Learned Access security intel 39506 | -2/Garrison | Triggered checkpoint 39576 | -2/Garrison | Triggered checkpoint 39578 | -2/Garrison | Discovered new exit (range 59) 39578 | -2/Garrison | Discovered new exit (range 12) 39578 | -2/Garrison | Discovered new exit (range 32) 39655 | -2/Garrison | Used Subatomic Replicator to replicate Hyp. Multirail 39662 | -2/Garrison | Used Integrity Redistributor, redistributed integrity from core (-415) 39777 | -2/Garrison | Found Prototype Processor 39777 | -2/Garrison | Identified Exp. Terrain Scan Processor 39780 | -2/Garrison | Found Prototype Processor 39780 | -2/Garrison | Identified Exp. Target Analyzer 39973 | -2/Garrison | Identified exit to Access 40023 | -2/Garrison | Entered Access 40023 | -1/Access | Accompanied by 2 allies 40023 | -1/Access | Evolved 2 slots: Power x1, Utility x1 40204 | -1/Access | Identified exit to Command 40523 | -1/Access | First assault squad dispatched 41295 | -1/Access | Spotted B-99 Colossus 41955 | -1/Access | Destroyed 9 combat bots 42118 | -1/Access | Spotted B-99 Colossus 42118 | -1/Access | Spotted B-99 Colossus 42132 | -1/Access | Entered Command 42900 | -1/Command | Phase Generator disabled 43382 | -1/Command | First assault squad dispatched 43539 | -1/Command | Destroyed 8 combat bots 45564 | -1/Command | Destroyed 9 combat bots 46252 | -1/Command | High security lockdown imminent 46280 | -1/Command | Destroyed 8 combat bots 46332 | -1/Command | High security lockdown engaged 46472 | -1/Command | Destroyed 10 combat bots 46599 | -1/Command | Spotted Investigator 46599 | -1/Command | Destroyed Investigator 46636 | -1/Command | Destroyed 17 combat bots 46744 | -1/Command | Destroyed 8 combat bots 46746 | -1/Command | Destroyed Striker 46751 | -1/Command | Spotted Striker 46751 | -1/Command | Spotted Executioner 46751 | -1/Command | Destroyed Striker 46751 | -1/Command | Destroyed Executioner 46761 | -1/Command | Spotted Striker 46778 | -1/Command | Destroyed Striker 46799 | -1/Command | Destroyed 15 combat bots 46915 | -1/Command | Spotted Striker 46923 | -1/Command | Destroyed Striker 46926 | -1/Command | Spotted Striker 46926 | -1/Command | Spotted Striker 46926 | -1/Command | Spotted Executioner 46926 | -1/Command | Destroyed Executioner 46928 | -1/Command | Destroyed Striker 46939 | -1/Command | Spotted Striker 46939 | -1/Command | Spotted Striker 46939 | -1/Command | Spotted Striker 46940 | -1/Command | Destroyed Striker 46940 | -1/Command | Destroyed Striker 46940 | -1/Command | Destroyed Striker 46942 | -1/Command | Destroyed Striker 46945 | -1/Command | Spotted Striker 46945 | -1/Command | Spotted Striker 46948 | -1/Command | Destroyed Striker 46953 | -1/Command | Destroyed Striker 46976 | -1/Command | Destroyed 31 combat bots 48007 | -1/Command | Found Prototype Device 48007 | -1/Command | Identified Adv. Kinecellerator 48757 | -1/Command | Spotted Combat Programmer 48757 | -1/Command | Spotted M Guard 48784 | -1/Command | Spotted Combat Programmer 48790 | -1/Command | System corruption reached 10% 48804 | -1/Command | Destroyed M Guard 48804 | -1/Command | Spotted M Guard 48819 | -1/Command | Destroyed Combat Programmer 48830 | -1/Command | Destroyed Combat Programmer 48894 | -1/Command | Found AEGIS Remote Shield 49197 | -1/Command | Destroyed M Guard 49197 | -1/Command | All MAIN.C guards destroyed 49210 | -1/Command | Found Prototype Protection 49210 | -1/Command | Identified Hvy. Regenerative Plating 49219 | -1/Command | Found Prototype Reactor 49223 | -1/Command | Found Prototype Reactor 49234 | -1/Command | Found Exp. Targeting Computer 49241 | -1/Command | Used Integrity Redistributor, redistributed integrity from core (-357) 49572 | -1/Command | Found Prototype Launcher 49573 | -1/Command | Identified Ragnarok Missile Launcher 49892 | -1/Command | Found Unknown Launcher 49892 | -1/Command | Identified Fusion Bomb Launcher 50020 | -1/Command | Found Unknown Launcher 50020 | -1/Command | Identified Gamma Bomb Array 50461 | -1/Command | Met MAIN.C 50470 | -1/Command | 0b10 Conduit disabled 50497 | -1/Command | Destroyed MAIN.C Shell 50500 | -1/Command | MAIN.C activated Command garrisons 50531 | -1/Command | Destroyed MAIN.C 50578 | -1/Command | Discovered new exit (range 37) 50578 | -1/Command | Discovered new exit (range 90) 50578 | -1/Command | Identified Zero-point Reactor (x2) 50578 | -1/Command | Extracted map data and part IDs from MAIN.C's data core 50762 | -1/Command | Spotted B-99 Colossus 50790 | -1/Command | Destroyed B-99 Colossus 50987 | -1/Command | Found Perforator 51005 | -1/Command | Found Exp. System Purifier 51868 | -1/Command | Found Multirail 52207 | -1/Command | Warped through subspace to slip node 52207 | -1/Command | Discovered new exit (range 5) 52216 | -1/Command | Entered Access_0 52219 | -1/Access_0 | Met Architect 52228 | -1/Access_0 | Architect warped through subspace 52250 | -1/Access_0 | Destroyed A8 52289 | -1/Access_0 | Architect warped through subspace 52347 | -1/Access_0 | Architect warped through subspace 52394 | -1/Access_0 | Architect warped through subspace 52420 | -1/Access_0 | Subspace Access Node disabled 52447 | -1/Access_0 | Architect warped through subspace 52463 | -1/Access_0 | Found Exp. Terrain Scanner 52480 | -1/Access_0 | Found Prototype Device 52480 | -1/Access_0 | Identified Desublimator 52485 | -1/Access_0 | Found Exp. Targeting Computer 52491 | -1/Access_0 | Core integrity fell below 50% 52509 | -1/Access_0 | Architect warped through subspace 52518 | -1/Access_0 | Found Exp. Phase Shifter 52581 | -1/Access_0 | Architect warped through subspace 52595 | -1/Access_0 | Subspace Access Node disabled 52633 | -1/Access_0 | Architect warped through subspace 52642 | -1/Access_0 | A6 warped into view 52686 | -1/Access_0 | Destroyed A6 52697 | -1/Access_0 | Architect warped through subspace 52701 | -1/Access_0 | Lost 3 parts (1u2w) 52716 | -1/Access_0 | Found Exp. Weapon Cycler 52730 | -1/Access_0 | Architect warped through subspace 52755 | -1/Access_0 | Architect warped through subspace 52791 | -1/Access_0 | Architect warped through subspace 52829 | -1/Access_0 | Architect warped through subspace 52871 | -1/Access_0 | Architect warped through subspace 52934 | -1/Access_0 | Core integrity fell below 20% 52935 | -1/Access_0 | Architect warped through subspace 52950 | -1/Access_0 | Lost 5 parts (1p1n1u2w) 52982 | -1/Access_0 | Destroyed A2 53029 | -1/Access_0 | Destroyed by Architect with Modified Sigix Sheargun Last Messages --------------- 53020_ Activated siege mode. 53020_ HV Slug penetrates Enhanced Hunter. 53020_ Enhanced Hunter suffers critical hit (Destroy). 53020_ Enhanced Hunter destroyed. 53020_ Penetrated by Quantum Shear. 53020_ Quantum Shear penetrates Earth. 53020_ Penetrated by Quantum Shear. 53022_ HV Slug penetrates Architect. 53022_ Architect suffers critical hit (Destroy). 53024_ HV Slug penetrates Architect. 53024_ Architect suffers critical hit (Destroy). 53025_ Penetrated by Quantum Shear. 53027_ Architect suffers critical hit (Destroy). 53027_ Destroyed Exp. Phase Shifter. 53027_ HV Slug penetrates Architect. 53027_ Architect suffers critical hit (Destroy). 53027_ Penetrated by Quantum Shear. 53029_ HV Slug penetrates Architect. 53029_ Architect suffers critical hit (Destroy). 53029_ Penetrated by Quantum Shear. Map ----- +----------------------------------------------------+ | ?????????????????????????????????????????????????? | | ?????????????????????????????????????????????????? | | ?????????????????????????????????????????????????? | | ?????????????????????????????????????????????????? | | ?????????????????????????????????????????????????? | | ?????????????????????????????????????????????????? | | ?????????????????????????????????????????????????? | | ?????????????????????????????????????????????????? | | ??????????????????????????????????????###????????? | | ?????????????????????????????????????## ????????? | | ????????????????????????????????????## ????????? | | ???????????????????????????????????## ????????? | | ???????????????????????????????????# ##??????? | | ??????????????????????????????? ??## #??????? | | ????????????????????????????### ### ##?####" | | ???????????????????????????? !!===###""" | | ???????????????????????????? !%!%!%!! | | ????????????????#?????????????# ##"=*! | | ????????????????# ?????????????? ?#"" # | | ????????????????# ?????????????? ?## ## ## | | ????????????????# ;?##?????????? ?## ### ##? | | ????????????????? ; # #####????? #?# #?###?? | | ???????????%=%;????; ;;###???# #?# #?????? | | ??????????!%]]! ## ;;;% ;### # #?## ""#?????? | | ??????????]=!% ;;;;;% % ; ;;; #?#" ##??????? | | ??????????]!==;; % @ ;; ;%%###" "#??????# | | ????????????????##;;;;;%; ;;;; ;;%% #???????? | | ?????????????????#### ;;; 0 #???????? | | ????????????????????# ;; ;;;;;%%%;;##???????? | | ????????????????????##;;;; ;;;;;# #????????? | | ????????????????????? Y;; ;; #?????????? | | ???????????????????? % ;; #?????????? | | ??????????????????? ;;% #;??????????? | | ??????????????????##### #;;; ; ???????????? | | ??????????????????????# ### ;# ???????????? | | ?????????????????????# #?# # #????????????? | | ?????????????????????## #?### ?;????????????? | | ??????????????????????### ????? ??????????????? | | ????????????????????????# ?????# ??????????????? | | ????????????????????????# ?????# ??????????????? | | ????????????????????????? ????? ??????????????? | | ????????????????????????????????? ???????????????? | | ?????????????????????????????????????????????????? | | ?????????????????????????????????????????????????? | | ?????????????????????????????????????????????????? | | ?????????????????????????????????????????????????? | | ?????????????????????????????????????????????????? | | ?????????????????????????????????????????????????? | | ?????????????????????????????????????????????????? | | ?????????????????????????????????????????????????? | +----------------------------------------------------+ Best States ------------- Heat Dissipation 130 Energy Generation 121 Energy Capacity 1790 Matter Stores 300 Matter Capacity 300 Sight Range 22 Robot Scan Range 18 Terrain Scan Range 30 Terrain Scan Density 10 Jamming Range 22 Armor Coverage 1200 Weapon Shielding 66 Weapon Cycling 30 Phase Shifting 20 Evasion (%) 60 Targeting Accuracy 36 Target Analysis 10 Core Analysis 8 Recoil Reduction 6 Kinecelleration 40 Offensive Hacking 42 Relay Coupler Types 2 Relay Coupler Value 39 Item Schematics ----------------- Hacking Suite | -9/Materials | Scanalyzed Coil Gun | -8/Materials | Scanalyzed Railgun | -7/Factory | Scanalyzed Imp. Heavy Treads | -7/Factory | Scanalyzed Hyp. Railgun | -5/Hub_04(d) | Hacked Imp. Matter Neutralizer | -3/Quarantine | Archive Cld. Plasma Rifle | -3/Quarantine | Archive Hvy. Proton Cannon | -3/Quarantine | Archive Graviton Reactor | -3/Quarantine | Archive Helical Railgun | -3/Quarantine | Archive Hvy. Tesla Rifle | -3/Section 7 | Archive Robot Schematics ------------------ K-01 Serf | -3/Quarantine | Archive Fabricated ------------ Y-64 Sentinel | x2 | -4/Armory | Preloaded Alien Tech Used ----------------- Core Expander Integrated Mediator Transdimensional Reconstructor Integrated Dissipator Integrated Reactor Integrity Redistributor LRC Energy Well Subatomic Replicator Achievements -------------- None Challenges ------------ None Game ------ Seed ColdPortableScreen Manual? 0 Play Time 05:14:37 Cumulative 1541.5 hours Start 2022.07.07 @ 23:19:48 End 2022.07.09 @ 14:33:24 Sessions 5 Manual Loads 0 Difficulty Rogue Special Mode None Game No. 541 Rogue 541 Adventurer 0 Explorer 0 Win Type - Total 108 Types 22/12/45/6/1/2/18/1/1 Lore% 97 Gallery% 96 Achievement% 86 Wizard Run 0 Options --------- ASCII 0 Keyboard 0 Movement Numpad Keybinds 0 Fullscreen 1 Font 18/SmallcapsGlow Map View 76x50 Tactical HUD 1 Map Filters NONE Filters NONE Steam 1 RUN: 8c0eec48-7811-49b8-bb34-3799467ea9f8